Cogmind - Beta 11.1 @@@ ROGUE MODE // 2022.07.25 @ 00:51:35 Player: ktur Result: Destroyed by P-80 Master with Gamma Rifle Performance ------------- Evolutions (9) 4500 Regions Visited (36) 7200 Robots Destroyed (592) 2960 Value Destroyed (28218) 28218 Prototype IDs (281) 5620 Alien Tech Used (6) 1200 Bonus (33368) 33368 TOTAL SCORE: 83066 Bonus ------- High Alert Combat Kills 848 Follower Combat Kills 2368 Network Hubs Disabled 400 Met Data Miner 300 Met Zhirov 300 Met Warlord at Base 500 MAIN.C Attacked Warlord 500 Warlord Defense Kills 134 Built Enhanced Grunts 300 Met R17 at Cetus 500 Used Core Reset Matrix 3000 Met R17 at Research 2000 Met Warlord at Research 2000 Destroyed MAIN.C Guards 500 Met MAIN.C 5000 Destroyed MAIN.C Shell 5000 Destroyed MAIN.C 10000 Met Warlord at Command 2000 Friendly Fire -2282 Cogmind --------- Core Integrity 0/1600 Matter 242/300 Energy 6/100 System Corruption 25% Temperature Cool (1) Movement Flying (30) Location -1/Command Parts ------- > --- POWER (2) -------- (None) > --- PROPULSION (8) --- Cooled Q-thruster > --- UTILITY (13) ----- (None) > --- WEAPON (2) ------- (None) > --- INVENTORY (5) ---- Experimental Energy Well (0) Experimental Terrain Scanner Core Cannon Peak State ------------ > --- POWER ------------ Quantum Reactor Zero-point Reactor > --- PROPULSION ------- Biometal Heavy Treads Biometal Heavy Treads Biometal Heavy Treads Biometal Heavy Treads > --- UTILITY ---------- Experimental Cooling System Huge Storage Unit Advanced Energy Well Experimental Core Analyzer Advanced Particle Accelerator Quantum Capacitor Centrium Medium Armor Plating Advanced Force Field Experimental Hacking Suite Experimental Hacking Suite Experimental Hacking Suite System Mapper > --- WEAPON ----------- Sigix Shearcannon > --- INVENTORY -------- Vortex Chain Reactor Cooled Q-thruster Cooled Q-thruster Experimental Coolant Injector Advanced Energy Well Experimental Energy Well Advanced Matter Compressor Experimental Terrain Scanner Experimental Reaction Control System Experimental Utility Shielding Experimental Utility Shielding Transdimensional Reconstructor Integrity Redistributor Spacefold Activator Vortex Driver Enhanced Nova Cannon Null Cannon Core Cannon Compact Mass Driver Mini Smartbomb Launcher Z-bomb Delivery System [Rating: 243] Favorites ----------- Power Reinforced Quantum Reactor Engine Heavy Ion Engine Power Core Nuclear Core Reactor Reinforced Quantum Reactor Propulsion Light Treads Treads Light Treads Flight Unit Improved Cesium-ion Thruster Utility Experimental Hacking Suite Device Experimental Sensor Array Storage Huge Storage Unit Processor Advanced Signal Interpreter Hackware Experimental Hacking Suite Protection Experimental Utility Shielding Weapon Advanced KE Penetrator Energy Gun Tesla Rifle Energy Cannon Advanced Beam Cannon Ballistic Gun Advanced KE Penetrator Ballistic Cannon Hypercooled Linear Accelerator Launcher Mini Smartbomb Launcher Special Weapon RU-N14's Throwing Claymores v3 Impact Weapon Power Maul Slashing Weapon Chainsword Piercing Weapon Lance Special Melee Weapon Advanced Datajack Build | -11 -10 -10 -9 -9 -9 -8 -8 -7 -7 -7 -7 -6 -6 -6 -6 -6 -6 -5 -5 -5 -5 -5 -5 -4 -4 -4 -4 -4 -3 -3 -3 -3 -2 -2 -1 -1 ------- Run | Scr Mat Min Mat Min Exi Min Mat Fac Low Low Dat Pro Fac Ext Cet Arc Hub Fac Was Fac Upp Upp Zhi Pro Fac Upp Upp War Pro Res Qua Sec Res Tes Acc Com Slots Evolved 18 | . . . 2 . . . 2 2 . . . . 2 . . . . 2 . . . . . . 2 . . . . 2 . . 2 . 2 . Power 1 | . . . . . . . . . . . . . . . . . . . . . . . . . 1 . . . . . . . . . . . Propulsion 6 | . . . . . . . 1 1 . . . . . . . . . . . . . . . . . . . . . . . . 2 . 2 . Utility 11 | . . . 2 . . . 1 1 . . . . 2 . . . . 2 . . . . . . 1 . . . . 2 . . . . . . Weapon . | . . . . . . . . . . . . . . . . . . . . . . . . . . . . . . . . . . . . . Parts Attached 955 | 6 22 4 37 5 . 4 42 49 14 3 9 22 55 18 13 18 13 60 12 78 8 . 10 20 122 4 14 22 15 19 74 29 13 53 24 44 Power 58 | 1 3 3 6 . . . 2 . 1 . . . 2 . 1 . . 2 2 3 . . 3 . 10 2 . 3 . 1 5 1 . . . 7 Engine 21 | 1 3 3 6 . . . . . 1 . . . 1 . . . . 1 . 1 . . . . 3 . . . . . . . . . . 1 Core 11 | . . . . . . . 2 . . . . . 1 . . . . . . 2 . . . . 3 1 . . . . 1 . . . . 1 Reactor 26 | . . . . . . . . . . . . . . . 1 . . 1 2 . . . 3 . 4 1 . 3 . 1 4 1 . . . 5 Propulsion 129 | 2 2 . 11 2 . . 9 14 . . 1 2 18 1 2 4 . 6 . 8 . . . 2 19 . . 1 . 1 5 2 2 5 1 9 Treads 92 | 2 2 . 11 2 . . 9 8 . . 1 2 13 1 2 4 . 2 . 3 . . . 2 4 . . 1 . 1 5 2 2 5 . 8 Leg . | . . . . . . . . . . . . . . . . . . . . . . . . . . . . . . . . . . . . . Wheel . | . . . . . . . . . . . . . . . . . . . . . . . . . . . . . . . . . . . . . Hover . | . . . . . . . . . . . . . . . . . . . . . . . . . . . . . . . . . . . . . Flight 37 | . . . . . . . . 6 . . . . 5 . . . . 4 . 5 . . . . 15 . . . . . . . . . 1 1 Utility 495 | 1 5 1 9 3 . 1 15 23 8 . 1 12 24 11 6 10 13 38 8 46 6 . 5 14 63 2 13 8 5 9 46 24 6 25 17 17 Device 273 | . . . 1 1 . . 2 9 5 . . 5 13 7 1 9 10 18 3 25 3 . 4 6 35 1 7 2 3 4 36 19 5 18 11 10 Storage 30 | 1 1 . 1 . . . 2 4 1 . . . 2 . . 1 . 3 . 3 . . 1 1 4 . . . . . 2 . . . . 3 Processor 11 | . 1 . 1 . . . . 1 . . . . 1 1 . . . . . 2 . . . . 2 . . 1 . 1 . . . . . . Hackware 40 | . . . . . . . . 2 . . . . 3 . . . . 11 . 8 . . . 2 9 . . 1 . . 1 . . . 3 . Protection 141 | . 3 1 6 2 . 1 11 7 2 . 1 7 5 3 5 . 3 6 5 8 3 . . 5 13 1 6 4 2 4 7 5 1 7 3 4 Artifact . | . . . . . . . . . . . . . . . . . . . . . . . . . . . . . . . . . . . . . Weapon 273 | 2 12 . 11 . . 3 16 12 5 3 7 8 11 6 4 4 . 14 2 21 2 . 2 4 30 . 1 10 10 8 18 2 5 23 6 11 Energy Gun 6 | . . . 1 . . . 2 . . . . . . . . . . . . . . . . . 1 . . 1 . . . . . 1 . . Energy Cannon 72 | . . . 5 . . 2 9 4 2 2 3 4 4 3 . . . . . 1 1 . 1 . 3 . . 1 . 3 1 . 1 11 2 9 Ballistic Gun 63 | 2 6 . 4 . . . 1 . . . . . . . . 2 . 2 . 7 . . 1 2 10 . 1 7 5 4 9 . . . . . Ballistic Cannon 34 | . 5 . 1 . . . . 1 . . 1 1 . . . . . 3 . 4 . . . 1 1 . . . . . 5 1 2 7 1 . Launcher 44 | . . . . . . 1 2 . 3 1 2 3 1 . 2 . . 1 2 4 1 . . 1 3 . . . 3 1 3 . 1 4 3 2 Special Weapon 9 | . . . . . . . . . . . . . . . . . . 1 . 1 . . . . 2 . . 1 2 . . 1 1 . . . Impact Weapon 10 | . . . . . . . . 4 . . . . 3 3 . . . . . . . . . . . . . . . . . . . . . . Slashing Weapon 14 | . 1 . . . . . . 1 . . 1 . 3 . 2 1 . 4 . . . . . . 1 . . . . . . . . . . . Piercing Weapon 11 | . . . . . . . . . . . . . . . . . . 1 . 3 . . . . 7 . . . . . . . . . . . Special Melee Weapon 10 | . . . . . . . 2 2 . . . . . . . 1 . 2 . 1 . . . . 2 . . . . . . . . . . . Unidentified Prototypes 41 | . . . 3 . . . 3 1 . . 1 1 4 . 2 . . . . . . . 4 . 1 . . 8 . 1 4 . . 6 . 2 Corrupted Parts 5 | . . . . . . . . . . . . . 1 . 2 2 . . . . . . . . . . . . . . . . . . . . System Corruption 18 | . . . . . . . . . . . . . 5 . 6 7 . . . . . . . . . . . . . . . . . . . . Parts Lost 65 | . 2 . . . . 1 . 3 2 . 1 1 5 . . . 2 1 7 2 . . . 5 6 . . . . 1 . . . . . 26 Power 12 | . 1 . . . . . . . 1 . . . . . . . . . 1 . . . . . 3 . . . . . . . . . . 6 Propulsion 13 | . . . . . . . . . . . 1 1 3 . . . . . . . . . . . 3 . . . . . . . . . . 5 Utility 25 | . . . . . . 1 . . . . . . 2 . . . 2 1 4 2 . . . 3 . . . . . . . . . . . 10 Weapon 15 | . 1 . . . . . . 3 1 . . . . . . . . . 2 . . . . 2 . . . . . 1 . . . . . 5 Highest Loss Streak 16 | . 1 . . . . 1 . 1 2 . 1 1 3 . . . 2 1 3 1 . . . 4 2 . . . . 1 . . . . . 16 To Critical Strikes . | . . . . . . . . . . . . . . . . . . . . . . . . . . . . . . . . . . . . . Average Slot Usage (%) 89 | . 98 100 99 99 100 100 99 95 91 92 82 92 82 85 69 71 73 89 71 87 82 82 70 83 87 88 88 88 89 89 89 89 81 80 76 77 Engine 3 | . 13 14 10 11 11 11 . . 2 7 7 7 3 6 1 . . 4 . . . . . . . . . . . . . . . . . . Core 1 | . . . . . . . 8 7 3 . . . 2 . . . . . . 4 5 5 . . 2 . . . . . . . . . . . Reactor 2 | . . . . . . . . . . . . . . . 4 6 6 . 4 . . . 4 5 2 10 10 9 10 8 8 8 4 4 4 4 Treads 15 | . 27 28 22 21 22 22 27 10 30 30 30 30 14 25 15 12 13 2 11 4 11 11 11 11 3 10 10 10 10 8 8 8 12 12 12 15 Flight 3 | . . . . . . . . 19 . . . . 11 . . . . 14 . 13 . . . . 12 . . . . . . . . . . . Device 7 | . . . 8 11 11 11 9 9 6 7 4 5 5 9 7 11 7 13 3 4 4 5 5 6 6 10 9 6 9 13 8 8 7 6 7 8 Storage 6 | . 14 14 11 11 11 11 9 7 7 7 7 7 7 13 6 1 6 . 5 4 5 5 5 4 3 5 5 5 5 4 4 4 4 4 4 4 Processor 9 | . 1 . 11 11 11 3 . 6 7 7 7 7 7 13 13 13 13 11 11 11 11 11 11 11 10 10 10 10 10 14 14 14 13 13 12 7 Hackware 15 | . . . . . . . . 12 7 7 7 7 13 . . . . 26 17 29 29 29 29 26 29 26 26 26 26 23 27 28 26 26 24 21 Protection 8 | . 11 14 13 10 11 18 26 4 6 7 9 8 3 3 11 13 12 2 7 2 . . . 3 4 4 5 7 5 4 4 4 4 5 4 5 Energy Cannon 6 | . . . 16 22 22 22 17 4 14 14 1 14 6 12 3 . . . . 1 4 5 . . 1 5 3 . . . . . . 4 3 3 Ballistic Gun 3 | . 9 28 4 . . . . . . . . . . . . 3 13 . . 1 5 5 . 7 3 5 6 9 9 7 6 . . . . . Ballistic Cannon 1 | . 17 . . . . . . . . . 1 . . . . . . 1 . 1 . . . 1 1 . . . . . 2 9 7 3 3 3 Naked Turns 4 | . . . . . . . . . . . . . . . . . . . . . . . . . . . . . . . . . . . . 4 Heaviest Build 423 | 12 58 54 66 66 64 69 248 233 423 231 238 238 270 270 274 274 279 275 251 263 226 220 245 245 174 174 174 175 179 176 193 190 162 164 157 175 Greatest Support 315 | 40 40 40 40 40 40 40 60 83 80 80 80 80 99 96 160 160 160 160 160 160 160 160 160 160 160 160 160 160 160 160 160 160 240 240 240 315 Greatest Overweight (x) 5 | . 1 1 1 3 1 1 4 5 5 2 2 2 2 3 3 1 1 2 1 4 1 1 1 1 5 1 1 1 1 1 1 1 . . . . Average Overweight (x) . | . . 1 1 1 1 1 1 . 2 2 2 2 . 2 1 . 1 . 1 . 1 1 1 . . . 1 . 1 . . 1 . . . . Largest Inventory Capacity 35 | 8 20 20 20 20 20 20 35 35 35 35 35 35 35 35 35 35 35 35 35 35 35 35 35 35 25 25 25 25 25 25 25 25 25 25 25 25 Average Capacity 23 | 7 19 20 20 20 20 20 22 17 35 35 35 35 23 35 35 12 35 9 35 19 35 35 35 29 13 25 25 25 25 25 25 25 25 25 25 24 Most Carried 35 | 6 20 20 20 20 20 20 35 35 35 35 35 35 35 35 35 35 35 35 35 35 35 35 35 35 25 25 25 25 25 25 25 25 25 25 25 25 Average Carried 22 | 3 18 19 19 19 19 19 22 14 34 34 34 34 21 34 34 9 34 7 30 17 35 35 34 28 12 25 24 24 25 24 24 24 24 24 24 24 Final Capacity 35 | 8 20 20 20 20 20 20 35 35 35 35 35 35 35 35 35 35 35 35 35 35 35 35 35 25 25 25 25 25 25 25 25 25 25 25 25 5 Final Carried 35 | 6 20 20 20 20 20 20 35 35 35 35 35 35 35 35 35 35 32 35 29 35 35 35 35 25 25 25 25 25 25 25 25 25 25 25 25 4 Class Distribution -------------------- 25% | Mutant 21% | Wizard-Mutant 16% | Hauler-Mutant 13% | Wizard-Skirmisher 7% | Wizard-Sprinter 3% | Hacker-Mutant 3% | Wizard-Scout Dominant Class ---------------- Mutant | -10/Materials Mutant | -10/Mines Mutant | -9/Materials Mutant | -9/Mines Mutant | -9/Exiles Mutant | -8/Mines Mutant | -8/Materials Hauler-Mutant | -7/Factory Hauler-Mutant | -7/Lower Caves Hauler-Mutant | -7/Lower Caves Hauler-Mutant | -7/Data Miner Hauler-Mutant | -6/Proximity Caves Hauler-Mutant | -6/Factory Hauler-Mutant | -6/Extension Hauler-Mutant | -6/Cetus Scavenger-Mutant | -6/Archives Hauler-Mutant | -6/Hub_04(d) Wizard-Scout | -5/Factory Hauler-Mutant | -5/Waste Wizard-Sprinter | -5/Factory Wizard-Mutant | -5/Upper Caves Wizard-Mutant | -5/Upper Caves Wizard-Mutant | -5/Zhirov Hacker-Mutant | -4/Proximity Caves Wizard-Sprinter | -4/Factory Wizard-Mutant | -4/Upper Caves Wizard-Mutant | -4/Upper Caves Wizard-Mutant | -4/Warlord Wizard-Mutant | -3/Proximity Caves Wizard-Skirmisher | -3/Research Wizard-Skirmisher | -3/Quarantine Wizard-Mutant | -3/Section 7 Wizard-Skirmisher | -2/Research Wizard-Mutant | -2/Testing Wizard-Skirmisher | -1/Access Wizard-Mutant | -1/Command Resources | -11 -10 -10 -9 -9 -9 -8 -8 -7 -7 -7 -7 -6 -6 -6 -6 -6 -6 -5 -5 -5 -5 -5 -5 -4 -4 -4 -4 -4 -3 -3 -3 -3 -2 -2 -1 -1 ----------- Run | Scr Mat Min Mat Min Exi Min Mat Fac Low Low Dat Pro Fac Ext Cet Arc Hub Fac Was Fac Upp Upp Zhi Pro Fac Upp Upp War Pro Res Qua Sec Res Tes Acc Com Matter Collected 23614 | 260 852 264 693 40 40 71 477 460 426 80 285 604 822 374 277 247 542 710 768 1433 479 39 . 661 2403 61 333 293 586 337 2639 1422 603 1340 984 1709 Remotely 10 | . . . . . . . . . . . . . . . . . . . . . . . . . 10 . . . . . . . . . . . Salvage Created 27882 | . 780 387 1804 39 . 413 1943 819 198 45 148 571 1452 340 327 283 1123 1108 1151 2100 357 65 . 612 2817 . 510 63 782 238 860 1122 142 1212 1042 3029 Parts 1299 | . 53 39 98 . . 28 134 26 10 6 . 12 48 14 16 28 63 52 4 111 18 . . 19 130 . 16 2 25 10 84 40 . 53 43 117 Haulers Intercepted 41 | . 2 . 5 . . . 6 7 . . . 1 2 . . . 2 3 . 5 . . . . 7 . . . . 1 . . . . . . Recyclers Shooed 5 | . . . 2 . . . . . . . . . . . . . 1 . . 1 . . . . . . . . . . . . . . 1 . Parts Field Recycled . | . . . . . . . . . . . . . . . . . . . . . . . . . . . . . . . . . . . . . Retrieved Matter . | . . . . . . . . . . . . . . . . . . . . . . . . . . . . . . . . . . . . . Parts Self-Destructed 95 | . . . . . . . . . 10 5 . 10 . . . . . . . . 15 . . 16 . . 22 . 17 . . . . . . . Prevented 6 | . . . . . . . . . 2 . . . . . . . . . . . 4 . . . . . . . . . . . . . . . Kills | -11 -10 -10 -9 -9 -9 -8 -8 -7 -7 -7 -7 -6 -6 -6 -6 -6 -6 -5 -5 -5 -5 -5 -5 -4 -4 -4 -4 -4 -3 -3 -3 -3 -2 -2 -1 -1 ------- Run | Scr Mat Min Mat Min Exi Min Mat Fac Low Low Dat Pro Fac Ext Cet Arc Hub Fac Was Fac Upp Upp Zhi Pro Fac Upp Upp War Pro Res Qua Sec Res Tes Acc Com Combat Hostiles Destroyed 437 | . 15 13 33 1 . 13 34 4 6 4 4 12 19 3 8 . 15 7 6 27 10 . . 9 25 . 9 1 22 4 11 26 7 22 24 43 Melee 7 | . . . . . . . . 1 . . . . 3 . . . . 1 . . . . . . 2 . . . . . . . . . . . Guns 83 | . 1 13 9 . . . . . . . . . . . . . 15 . . 7 1 . . 5 9 . 5 1 5 1 11 . . . . . Cannons 210 | . 14 . 21 1 . 10 29 3 2 . 2 4 10 2 . . . 2 . 6 4 . . . 13 . 3 . . . . 23 1 15 10 35 AOE 126 | . . . . . . 2 3 . 4 4 2 8 6 . 6 . . 4 6 14 5 . . 4 1 . . . 17 3 . 3 6 7 14 7 Classes Destroyed 25 | . 7 2 3 . . 1 1 1 1 . . . 2 . . . 1 2 1 . . . . . . . . . . . . . 2 . . 1 Worker 22 | . 1 1 2 . . . . . . . . . 3 . . . 2 1 . 3 . . . . 7 . . . . . . . . 1 . 1 Builder 8 | . . 2 1 . . . 1 2 . . . . . . . . . . . 2 . . . . . . . . . . . . . . . . Tunneler 3 | . . 1 . . . . . . . . . . . . . . . 1 . . . . . . 1 . . . . . . . . . . . Hauler 41 | . 2 . 5 . . . 6 7 . . . 1 2 . . . 2 3 . 5 . . . . 7 . . . . 1 . . . . . . Recycler 28 | . 3 . 1 . . . 4 3 . . . . 2 . . . 1 3 . 3 . . . . 5 . . . . . . . . . 2 1 Mechanic 3 | . . . . . . . . . . . . . . . . . . 1 . . . . . . . . . . 1 . . . . . . 1 Operator 14 | . 2 . . . . . . . . . . . 1 . . 8 . . . 1 . . . . 1 . . . . . . . . . 1 . Drone 1 | . . . . . . . . . . . . . . . . . . 1 . . . . . . . . . . . . . . . . . . Watcher 35 | . 3 . 3 . . . 4 2 . . . . 4 1 . . . 5 . 6 . . . . 4 . . . . . . 2 . 1 . . Swarmer 99 | . 3 9 3 . . 6 12 . . 4 . . 3 . 4 . 3 . . 9 5 . . 5 5 . 4 . 10 3 . . . . 11 . Grunt 154 | . 12 4 19 1 . 5 12 . . . . 11 7 . 3 . 3 1 . 8 4 . . . 4 . 5 1 6 . . 10 4 10 9 15 Brawler 8 | . . . 1 . . 1 . . . . . 1 . . . . . . . . 1 . . . . . . . 3 . . . . . . 1 Duelist 5 | . . . . . . . 1 . . . . . . . . . . . . 1 . . . . . . . . 2 . . . . . . 1 Sentry 34 | . . . 10 . . . 8 . . . . . . 1 . . 1 . . 2 . . . . 2 . . . 1 . . 3 1 2 . 3 Specialist 2 | . . . . . . . . . . . . . 2 . . . . . . . . . . . . . . . . . . . . . . . Hunter 32 | . . . . . . 1 1 . . . . . 1 2 1 . 5 1 . 2 . . . 4 . . . . . . 2 2 . 2 . 8 Programmer 64 | . . . . . . . . 4 . . . . 5 . . . 2 4 . 5 . . . . 14 . . . . 1 . 10 . 7 4 8 Heavy 2 | . . . . . . . . . . . . . 1 . . . . . . . . . . . . . . . . . . . . . . 1 Behemoth 2 | . . . . . . . . . . . . . . . . . 1 . . . . . . . . . . . . . . . . . . 1 Compactor 6 | . . . . . . . . . . . . . . . . . . . 6 . . . . . . . . . . . . . . . . . Quarantine Guard 9 | . . . . . . . . . . . . . . . . . . . . . . . . . . . . . . . 9 . . . . . S7 Guard 1 | . . . . . . . . . . . . . . . . . . . . . . . . . . . . . . . . 1 . . . . M Guard 1 | . . . . . . . . . . . . . . . . . . . . . . . . . . . . . . . . . . . . 1 Enhanced Grunt 4 | . . . . . . . . . . . 4 . . . . . . . . . . . . . . . . . . . . . . . . . Combat Programmer 1 | . . . . . . . . . . . . . . . . . . . . . . . . . . . . . . . . . . . . 1 Striker 2 | . . . . . . . . . . . . . . . . . . . . . . . . . . . . . . . . . 1 . . 1 Executioner 1 | . . . . . . . . . . . . . . . . . . . . . . . . . . . . . . . . . 1 . . . Protovariant X 1 | . . . . . . . . . . . . . . . . . . . . . . . . . . . . . . . . . . 1 . . Zionite 1 | . . . 1 . . . . . . . . . . . . . . . . . . . . . . . . . . . . . . . . . Assembled 5 | . . . . . . . . . . . . . . . . . . . . . . . . . . . . . . . . . . . . 5 Thug 5 | . . . . . . . . . 5 . . . . . . . . . . . . . . . . . . . . . . . . . . . Wizard 1 | . . . . . . . . . . . . . . . . . . . . . . . . . . . . . . . . . . . . 1 Mutant 1 | . . . . . . . . . 1 . . . . . . . . . . . . . . . . . . . . . . . . . . . Best Kill Streak 8 | . 3 4 3 1 . 3 4 2 5 4 3 6 4 1 5 2 8 2 2 6 5 . . 5 6 . 4 1 5 3 2 5 6 6 5 8 Combat Bots Only 8 | . 3 3 3 1 . 3 4 2 5 4 3 5 3 1 5 . 6 2 2 5 5 . . 5 5 . 4 1 5 3 2 5 6 4 5 8 Max Kills in Single Turn 5 | . 1 2 2 1 . 2 3 1 3 2 1 2 4 1 5 1 2 2 1 4 4 . . 4 1 . 1 1 3 3 2 3 3 2 3 3 Gunslinging . | . . . . . . . . . . . . . . . . . . . . . . . . . . . . . . . . . . . . . Exploded 5 | . . . . . . 2 3 . 3 2 1 2 3 . 5 . . 2 1 3 4 . . 4 1 . . . 3 3 . 3 3 2 3 3 Melee 1 | . . . . . . . . 1 . . . . 1 . . . . 1 . . . . . . 1 . . . . . . . . . . . Uniques/NPCs Destroyed 2 | . . . . . . . . . . . . . . . . . . . . . . . . . . . . . . . . . . . . 2 MAIN.C Shell (-1/Command) MAIN.C (-1/Command) Combat | -11 -10 -10 -9 -9 -9 -8 -8 -7 -7 -7 -7 -6 -6 -6 -6 -6 -6 -5 -5 -5 -5 -5 -5 -4 -4 -4 -4 -4 -3 -3 -3 -3 -2 -2 -1 -1 -------- Run | Scr Mat Min Mat Min Exi Min Mat Fac Low Low Dat Pro Fac Ext Cet Arc Hub Fac Was Fac Upp Upp Zhi Pro Fac Upp Upp War Pro Res Qua Sec Res Tes Acc Com Damage Taken 38508 | . 714 304 1052 20 . 425 1323 269 496 73 466 492 1199 436 28 15 1340 219 1097 2318 537 . . 2130 1965 . 587 191 320 1536 1032 2332 250 1702 755 12885 Core 3594 | . 115 51 71 . . 86 146 8 37 29 45 . 115 42 . . 54 38 141 289 57 . . 127 352 . 57 17 36 146 37 236 . 87 . 1175 Absorbed by Shields 7981 | . . . . . . . . . 72 . . . . 9 26 . 271 . . . . . . . 10 . 555 197 332 377 604 1717 85 1291 443 1992 Reduced by Siege Mode 3283 | . . . . . . . . . . . . . . . . . 66 11 83 231 20 . . 237 94 . 59 5 30 44 76 153 15 157 72 1930 Redirected to Shielding 1121 | . . . . . . . . . . . . . . . . . . . . 124 . . . 138 110 . 42 18 25 65 95 118 . 46 29 311 Regen/Repaired (Parts) 14317 | . 163 . 113 . . . . 109 . . . . 76 . . . . 999 . 1298 . . . . 2992 . . . . 381 1127 1010 611 2070 . 3368 Core Remaining (%) 67 | 100 . 33 . . . 60 73 . . . . 83 . . . . 75 . . . . . . 34 . . . . 59 . . 60 . 94 . . Volleys Fired 1462 | . 67 28 119 3 . 26 106 11 42 23 13 39 60 17 11 . 52 6 41 64 13 1 . 59 110 . 52 7 40 23 55 72 12 73 49 168 Largest 2 | . 2 2 2 2 . 2 2 2 2 2 2 2 2 2 1 . 2 2 1 2 2 2 . 2 2 . 2 2 2 2 2 2 2 2 2 2 Hottest 240 | . 70 40 136 136 . 136 136 95 95 95 78 120 195 65 50 . 70 80 80 114 70 70 . 75 145 . 140 70 80 148 148 20 20 240 186 186 Shots Fired 2430 | . 117 56 230 6 . 52 210 13 50 32 24 57 100 41 12 . 104 11 40 110 24 2 . 89 157 1 79 14 70 36 103 139 15 112 81 243 Gun 710 | . 28 56 106 . . . . . . . . . . . . . 104 . . 34 10 1 . 82 68 1 36 14 59 22 89 . . . . . Cannon 1576 | . 89 . 124 6 . 51 207 13 40 29 13 47 100 41 1 . . 10 10 66 11 1 . 5 83 . 43 . . 12 13 138 10 102 71 240 Launcher 135 | . . . . . . 1 3 . 10 3 11 10 . . 11 . . 1 30 10 3 . . 2 6 . . . 8 2 1 . . 10 10 3 Special 9 | . . . . . . . . . . . . . . . . . . . . . . . . . . . . . 3 . . 1 5 . . . Kinetic 1233 | . 117 56 114 . . . . . . . 7 10 . . . . 104 10 10 58 10 1 . 84 126 1 36 14 59 22 92 138 10 36 34 84 Thermal 979 | . . . 116 6 . 51 207 13 40 29 6 37 100 41 1 . . . . 42 11 1 . 3 25 . 43 . . 12 10 . . 57 37 91 Explosive 133 | . . . . . . 1 3 . 10 3 11 10 . . . . . 1 30 10 3 . . 2 6 . . . 11 2 1 1 5 10 10 3 Electromagnetic 11 | . . . . . . . . . . . . . . . 11 . . . . . . . . . . . . . . . . . . . . . Slashing 65 | . . . . . . . . . . . . . . . . . . . . . . . . . . . . . . . . . . . . 65 Entropic 9 | . . . . . . . . . . . . . . . . . . . . . . . . . . . . . . . . . . 9 . . Robot Hit Streak 63 | . 11 8 23 5 . 8 13 6 5 2 4 6 9 5 3 . 16 7 17 37 19 3 . 17 15 . 9 22 28 13 23 29 8 15 19 63 Robot Miss Streak 10 | . 4 2 5 2 . 3 4 1 3 . 2 3 2 4 . . 3 1 1 2 2 . . 7 3 . 2 . 4 1 1 2 1 3 3 10 Penetration Max 1 | . . . . . . . . . . . . . . . . . 1 . . 1 . . . . 1 . 1 . 1 1 1 . . . . 1 Secondary Targets 5 | . . 2 . . . . . . . . . . . . . . 1 . . . . . . 1 . . . . 1 . . . . . . . Max Gunslinging Chain 1 | . . 1 . . . . . . . . . . . . . . 1 . . . . . . 1 . . . . 1 . . . . . . . Capacitor 34 | . . . . . . . . . . . . . . . . . . . . . . . . . . . . . . . . . . . . 34 Shots Hit Robots 1570 | . 69 35 153 4 . 28 118 33 12 1 14 35 58 18 2 10 64 33 25 106 15 2 . 44 135 . 36 14 21 21 62 95 8 66 50 183 Core Hits 1049 | . 29 20 59 1 . 20 66 8 17 4 23 39 29 10 21 8 34 20 15 62 18 1 . 23 64 . 14 5 50 10 23 51 21 50 53 181 Critical Kills 47 | . . . 3 . . 1 2 2 . . . . . 1 . . 7 . . 3 . . . 3 5 . 3 1 2 1 11 . . . 1 1 Critical Parts Destroyed 43 | . . 1 1 . . . . 5 . . . . 3 . . . 5 . . 3 . . . 3 2 . 5 5 3 2 5 . . . . . Critical Strikes 153 | . 2 1 4 . . 1 2 7 . . 2 2 3 1 . . 13 . . 10 . . . 7 16 . 8 6 6 3 17 11 2 7 2 20 Meltdown 9 | . . . 3 . . 1 2 . . . . . . 1 . . . . . . . . . . . . . . . . . . . . 1 1 Destroy 74 | . . 1 1 . . . . . . . . . . . . . 13 . . 6 . . . 7 7 . 8 6 5 3 17 . . . . . Blast 30 | . 2 . . . . . . . . . 2 2 . . . . . . . 2 . . . . 1 . . . . . . 11 1 1 1 7 Smash 10 | . . . . . . . . 7 . . . . 3 . . . . . . . . . . . . . . . . . . . . . . . Sever 17 | . . . . . . . . . . . . . . . . . . . . . . . . . 3 . . . 1 . . . 1 . . 12 Impale 7 | . . . . . . . . . . . . . . . . . . . . 2 . . . . 5 . . . . . . . . . . . Sunder 6 | . . . . . . . . . . . . . . . . . . . . . . . . . . . . . . . . . . 6 . . Melee Attacks 472 | . 1 . . . . . 1 62 . . 1 . 53 21 . 10 . 101 . 70 . . . . 152 . . . . . . . . . . . Impact 114 | . . . . . . . . 46 . . . . 47 21 . . . . . . . . . . . . . . . . . . . . . . Slashing 114 | . 1 . . . . . . 14 . . 1 . 6 . . 10 . 61 . . . . . . 21 . . . . . . . . . . . Piercing 240 | . . . . . . . . . . . . . . . . . . 40 . 69 . . . . 131 . . . . . . . . . . . Sneak Attacks 78 | . . . . . . . 1 12 . . 1 . 9 . . 10 . 10 . 11 . . . . 24 . . . . . . . . . . . Combat Hostiles 1 | . . . . . . . . . . . . . 1 . . . . . . . . . . . . . . . . . . . . . . . Follow-up Attacks . | . . . . . . . . . . . . . . . . . . . . . . . . . . . . . . . . . . . . . Damage Inflicted 82323 | . 1217 552 2904 95 . 679 3129 1823 1204 276 1224 2370 3624 615 841 866 1866 2618 4040 6342 735 62 . 1222 5626 . 1066 393 3287 1009 359 4747 1814 4861 4353 16504 Guns 8891 | . 277 502 996 . . . . . . . . . . . . . 1866 . . 859 131 30 . 906 832 . 709 393 548 483 359 . . . . . Cannons 38536 | . 925 . 1820 90 . 581 2778 252 241 26 190 860 1552 615 27 . . 304 364 1600 290 32 . 95 1682 . 357 . . 182 . 4211 211 2955 2311 13985 Explosions 24558 | . . . . . . 98 295 . 963 250 949 1510 840 . 814 . . 809 3676 2142 314 . . 221 201 . . . 2669 344 . 524 1472 1906 2042 2519 Melee 9790 | . . . . . . . . 1556 . . 85 . 1203 . . 866 . 1505 . 1741 . . . . 2834 . . . . . . . . . . . Ramming 347 | . 15 50 88 5 . . 56 15 . . . . 29 . . . . . . . . . . . 77 . . . . . . 12 . . . . Kinetic 21185 | . 1202 502 1135 . . . . . . . 135 210 . . . . 1866 304 364 1375 131 30 . 906 1873 . 709 393 548 483 359 4211 211 758 1051 2429 Thermal 18745 | . . . 1681 90 . 581 2778 252 241 26 55 821 1915 615 309 . . 704 . 1418 290 32 . 95 641 . 357 . . 182 . . . 1462 1260 2940 Explosive 22172 | . . . . . . 98 295 . 963 250 949 1339 477 . . . . 105 3676 1808 314 . . 221 201 . . . 2669 344 . 524 1472 1906 2042 2519 Electromagnetic 532 | . . . . . . . . . . . . . . . 532 . . . . . . . . . . . . . . . . . . . . . Impact 2205 | . . . . . . . . 1146 . . . . 1059 . . . . . . . . . . . . . . . . . . . . . . . Slashing 12040 | . . . . . . . . 410 . . 85 . 144 . . 866 . 954 . . . . . . 764 . . . 70 . . . 131 . . 8616 Piercing 4362 | . . . . . . . . . . . . . . . . . . 551 . 1741 . . . . 2070 . . . . . . . . . . . Entropic 735 | . . . . . . . . . . . . . . . . . . . . . . . . . . . . . . . . . . 735 . . Highest Corruption 36 | . . . . . . 4 . 3 1 1 1 1 10 10 16 16 . . 27 36 36 36 36 36 4 3 3 3 . 9 9 7 . 5 2 25 Average Corruption 10 | . . . . . . 4 . 1 1 1 1 1 6 10 14 9 . . 17 30 36 36 36 36 3 3 3 3 . 8 9 4 . 3 1 6 Corruption Purged 52 | . . . . . . . . 4 . . . . . . . 23 . . . . . . . . 4 . . . . . . 14 . 7 . . Corruption Blocked 89 | . . . . . . . . . . . . . . . . . . . . . . . . . . . . . . . . . 60 . . 29 Effects 805 | . . . . . . 12 . 7 7 5 3 17 63 130 23 17 . . 14 167 32 19 22 72 56 16 25 . . 6 1 24 . 13 3 51 Message Errors 204 | . . . . . . 5 . . 1 1 2 4 18 39 6 3 . . 4 44 9 8 8 15 12 2 8 . . 2 . 5 . . . 8 Matter Fused 179 | . . . . . . 3 . 1 2 1 . 5 11 28 4 3 . . 6 33 4 4 4 7 19 2 8 . . 2 . 9 . 7 . 16 Heat Flow Errors 100 | . . . . . . 1 . 2 1 1 1 2 9 10 6 1 . . . 26 4 1 5 8 3 4 1 . . . . 3 . 1 1 9 Energy Discharges 89 | . . . . . . 1 . 1 . . . 1 8 16 . 5 . . 1 14 4 4 4 9 9 4 2 . . . 1 1 . 2 1 1 Parts Rejected 5 | . . . . . . . . . . . . . . 1 . . . . . 2 . . . . . . . . . . . . . . . 2 Data Loss (minor) 91 | . . . . . . 1 . 2 2 . . 3 10 15 2 3 . . 1 14 5 2 . 8 8 1 4 . . . . 2 . 3 . 5 Data Loss (major) 42 | . . . . . . . . 1 . 1 . 1 3 7 3 1 . . 1 7 3 . 1 7 2 1 . . . . . . . . 1 2 Misfires 32 | . . . . . . 1 . . 1 1 . 1 1 9 1 . . . . 7 1 . . 2 1 1 1 . . . . 1 . . . 3 Alerts 21 | . . . . . . . . . . . . . 3 3 1 1 . . . 5 1 . . 2 2 1 1 . . . . 1 . . . . Misdirections 11 | . . . . . . . . . . . . . . 1 . . . . . 9 1 . . . . . . . . . . . . . . . Weapon Failures 31 | . . . . . . . . . . . . . . 1 . . . . 1 6 . . . 14 . . . . . 2 . 2 . . . 5 Overload Shots 6 | . . . . . . . . . . . . . 2 . . . . . . 4 . . . . . . . . . . . . . . . . Overflow Damage 3680 | . 16 . 10 . . 30 41 718 34 25 25 41 763 . . 57 . 241 . 634 5 17 . . 438 . 9 . . 26 . 62 . 108 95 285 Projectiles 602 | . 16 . 10 . . . 39 . 12 21 . 23 36 . . . . 5 . 106 5 17 . . 29 . 9 . . 26 . 62 . 73 93 20 Explosions 929 | . . . . . . 30 . . 22 4 . 18 62 . . . . 206 . 285 . . . . . . . . . . . . . 35 2 265 Melee 2149 | . . . . . . . 2 718 . . 25 . 665 . . 57 . 30 . 243 . . . . 409 . . . . . . . . . . . Knockbacks 89 | . 10 . 3 . . . 2 1 . . 2 . 2 . . . . . . 2 . . . . 9 . . . . . . 24 . 6 13 15 Impact 5 | . . . . . . . 2 1 . . . . 2 . . . . . . . . . . . . . . . . . . . . . . . Kinetic 81 | . 10 . 3 . . . . . . . 2 . . . . . . . . 2 . . . . 8 . . . . . . 23 . 6 12 15 Secondary 3 | . . . . . . . . . . . . . . . . . . . . . . . . . 1 . . . . . . 1 . . 1 . Self-Inflicted Damage 1464 | . . . . . . . 44 . 24 . . . 225 . . . . . 734 96 44 . . 29 . . . . 66 55 . . . 87 . 60 Shots 29 | . . . . . . . 1 . 1 . . . 3 . . . . . 15 2 1 . . 1 . . . . 2 1 . . . 1 . 1 Rammed 42 | . 3 4 13 2 . . 11 1 . . . . 2 . . . . . . . . . . . 3 . . . . . . 3 . . . . Targets Rammed 48 | . 4 7 13 2 . . 12 1 . . . . 2 . . . . . . . . . . . 4 . . . . . . 3 . . . . Kicked . | . . . . . . . . . . . . . . . . . . . . . . . . . . . . . . . . . . . . . Crushed 6 | . 1 3 . . . . 1 . . . . . . . . . . . . . . . . . 1 . . . . . . . . . . . Highest Temperature 484 | . 263 11 144 66 . 357 327 278 99 168 112 384 317 258 299 148 321 22 203 276 252 203 238 256 211 271 300 . 28 442 320 202 . 229 157 484 Average Temperature 82 | . 81 4 26 35 . 106 81 104 34 41 14 112 89 80 123 76 92 16 85 95 74 102 109 99 43 96 100 . 15 123 92 83 . 64 29 88 Received Heat Transfer 4747 | . 375 93 447 12 . 216 486 9 230 . . 210 330 10 . . 109 18 . 321 132 . . . 257 . 121 20 53 110 28 254 9 129 52 716 Effects 10 | . 2 . . . . . 1 1 . . . 2 . . 1 . . . . . . . . . . 2 . . . 1 . . . . . . Shutdowns 1 | . . . . . . . 1 . . . . . . . . . . . . . . . . . . . . . . . . . . . . . Interference 9 | . 2 . . . . . . 1 . . . 2 . . 1 . . . . . . . . . . 2 . . . 1 . . . . . . Siege Activations 82 | . . . . . . . . . . . . . . . . . 4 1 1 6 2 . . 3 9 . 2 2 5 1 9 12 2 7 5 11 Total Turns 1748 | . . . . . . . . . . . . . . . . . 92 12 39 126 25 . . 82 162 . 85 25 68 31 146 161 15 170 129 380 Longest Duration 80 | . . . . . . . . . . . . . . . . . 41 12 39 44 15 . . 43 47 . 52 15 31 31 38 33 11 71 40 80 Robots Corrupted 2 | . . . . . . . . . . . . . . . 2 . . . . . . . . . . . . . . . . . . . . . Combat Hostiles 2 | . . . . . . . . . . . . . . . 2 . . . . . . . . . . . . . . . . . . . . . Parts Fried 34 | . . . . . . . . 12 . . . . 15 . 7 . . . . . . . . . . . . . . . . . . . . . Impact Corruptions 36 | . . . . . . . 1 18 . . . . 14 . . . . . . . . . . . 1 . . . . . . 2 . . . . Robots Melted 10 | . . . 3 . . 1 2 . . . . . . 1 . . . . . . . . . . . . 1 . . . . . . . 1 1 Combat Hostiles 9 | . . . 3 . . 1 2 . . . . . . 1 . . . . . . . . . . . . 1 . . . . . . . . 1 Parts Melted 37 | . . . 4 . . 3 7 1 . . . . 2 4 1 . . . . 4 . . . 1 . . 1 . . 1 3 . . 2 3 . Heat Transferred 21036 | . . . 2849 148 . 1036 4514 296 333 37 111 631 1666 844 375 . . 400 . 1660 450 50 . 150 592 . 370 . . 148 . . . 1184 1036 2156 Parts Sabotaged . | . . . . . . . . . . . . . . . . . . . . . . . . . . . . . . . . . . . . . Parts Stolen . | . . . . . . . . . . . . . . . . . . . . . . . . . . . . . . . . . . . . . Parts Stripped . | . . . . . . . . . . . . . . . . . . . . . . . . . . . . . . . . . . . . . Power Chain Reactions 4 | . . . . . . . . . . . . 1 1 . 2 . . . . . . . . . . . . . . . . . . . . . Missiles Intercepted . | . . . . . . . . . . . . . . . . . . . . . . . . . . . . . . . . . . . . . Alert | -11 -10 -10 -9 -9 -9 -8 -8 -7 -7 -7 -7 -6 -6 -6 -6 -6 -6 -5 -5 -5 -5 -5 -5 -4 -4 -4 -4 -4 -3 -3 -3 -3 -2 -2 -1 -1 ------- Run | Scr Mat Min Mat Min Exi Min Mat Fac Low Low Dat Pro Fac Ext Cet Arc Hub Fac Was Fac Upp Upp Zhi Pro Fac Upp Upp War Pro Res Qua Sec Res Tes Acc Com Peak Influence 943 | . 243 346 495 148 . 160 525 345 . . . . 529 292 815 581 463 346 153 659 . . . . 416 . . . . 204 122 403 241 375 494 943 Initial 326 | . . 81 3 148 . . 31 238 . . . . 3 193 136 326 44 174 35 107 . . . . . . . . . 108 . 54 226 87 60 220 Average 164 | . 100 124 247 38 . 88 164 218 . . . . 277 142 358 347 207 79 111 271 . . . . 169 . . . . 60 29 119 147 125 259 370 Maximum Alert Level 3 | . 1 1 2 . . . 2 1 . . . . 2 1 3 2 2 1 . 2 . . . . 2 . . . . 1 . 2 1 1 2 3 Low Security (%) 65 | 100 81 82 40 100 . 100 57 33 . . . . 22 73 18 14 53 96 100 34 . . . . 76 . . . . 93 100 78 48 80 34 36 Level 1 28 | . 18 17 53 . . . 38 66 . . . . 53 26 41 59 43 3 . 45 . . . . 23 . . . . 6 . 18 51 19 44 29 Level 2 5 | . . . 5 . . . 3 . . . . . 24 . 34 26 2 . . 19 . . . . . . . . . . . 3 . . 20 22 Level 3 . | . . . . . . . . . . . . . . . 6 . . . . . . . . . . . . . . . . . . . . 11 Level 4 . | . . . . . . . . . . . . . . . . . . . . . . . . . . . . . . . . . . . . . Level 5 . | . . . . . . . . . . . . . . . . . . . . . . . . . . . . . . . . . . . . . High Security . | . . . . . . . . . . . . . . . . . . . . . . . . . . . . . . . . . . . . . Max Security . | . . . . . . . . . . . . . . . . . . . . . . . . . . . . . . . . . . . . . Squads Dispatched 114 | . 3 . 3 . . . 4 10 . . . . 13 1 . . 9 8 . 10 . . . . 22 . . . 1 5 1 5 2 5 3 9 Investigation 45 | . 2 . 2 . . . 3 5 . . . . 7 . . . 2 3 . 5 . . . . 6 . . . . 4 1 1 . . 1 3 Extermination 40 | . . . . . . . . 3 . . . . 4 . . . 2 4 . 3 . . . . 11 . . . . . . 4 . 3 2 4 Reinforcement 20 | . 1 . 1 . . . . 2 . . . . 2 1 . . 2 1 . 1 . . . . 3 . . . . 1 . . 2 2 . 1 Assault 4 | . . . . . . . 1 . . . . . . . . . . . . 1 . . . . . . . . 1 . . . . . . 1 Garrison 5 | . . . . . . . . . . . . . . . . . 3 . . . . . . . 2 . . . . . . . . . . . Intercept . | . . . . . . . . . . . . . . . . . . . . . . . . . . . . . . . . . . . . . Searches Triggered 2 | . . . . . . . . . . . . . 2 . . . . . . . . . . . . . . . . . . . . . . . Construction Impeded 3 | . . . . . . . . . . . . . . . . . 2 . . . . . . . . . . . . . . . . 1 . . Haulers Reinforced 6 | . . . . . . . . 2 . . . . 1 . . . . 1 . . . . . . 1 . . . . . . . 1 . . . Active Scanning Responses . | . . . . . . . . . . . . . . . . . . . . . . . . . . . . . . . . . . . . . Cargo Convoy Interrupts . | . . . . . . . . . . . . . . . . . . . . . . . . . . . . . . . . . . . . . Stealth | -11 -10 -10 -9 -9 -9 -8 -8 -7 -7 -7 -7 -6 -6 -6 -6 -6 -6 -5 -5 -5 -5 -5 -5 -4 -4 -4 -4 -4 -3 -3 -3 -3 -2 -2 -1 -1 --------- Run | Scr Mat Min Mat Min Exi Min Mat Fac Low Low Dat Pro Fac Ext Cet Arc Hub Fac Was Fac Upp Upp Zhi Pro Fac Upp Upp War Pro Res Qua Sec Res Tes Acc Com Distress Signals 56 | . 2 . 6 1 . . 5 2 . . . . 1 2 2 . 2 4 . . . . . . 2 . . . . 6 . . 5 1 2 13 Communications Jammed . | . . . . . . . . . . . . . . . . . . . . . . . . . . . . . . . . . . . . . Distress Signals . | . . . . . . . . . . . . . . . . . . . . . . . . . . . . . . . . . . . . . Times Spotted 712 | . 21 14 61 1 . 14 58 24 5 2 4 10 37 24 22 3 17 27 6 50 10 . . 9 44 . 11 39 18 18 7 31 13 29 23 60 Peak Tracking Total 12 | . 4 3 5 . . 3 6 6 5 4 3 5 4 4 5 1 4 4 3 8 4 . . 5 7 . 4 12 6 6 2 5 5 5 6 6 Tactical Retreats 61 | . 1 1 2 . . 1 1 9 1 . . . 7 1 1 . 1 10 . 9 . . . . 8 . 1 . . . 1 . 1 . 1 4 Traps | -11 -10 -10 -9 -9 -9 -8 -8 -7 -7 -7 -7 -6 -6 -6 -6 -6 -6 -5 -5 -5 -5 -5 -5 -4 -4 -4 -4 -4 -3 -3 -3 -3 -2 -2 -1 -1 ------- Run | Scr Mat Min Mat Min Exi Min Mat Fac Low Low Dat Pro Fac Ext Cet Arc Hub Fac Was Fac Upp Upp Zhi Pro Fac Upp Upp War Pro Res Qua Sec Res Tes Acc Com Traps Triggered 9 | . . . . . . . 2 1 . . . . . 1 . . 1 1 . 1 . . . . . . . . . . . 1 . . . 1 Indirectly . | . . . . . . . . . . . . . . . . . . . . . . . . . . . . . . . . . . . . . Trap Hack Attempts 61 | . . . . . . . 57 . . . . . . . . . . 3 . . . . . . 1 . . . . . . . . . . . Triggered . | . . . . . . . . . . . . . . . . . . . . . . . . . . . . . . . . . . . . . Disarmed 3 | . . . . . . . 1 . . . . . . 2 . . . . . . . . . . . . . . . . . . . . . . Reprogrammed 23 | . . . . . . . 5 . . . . . . . . . . 13 . . . . . . 1 . . . . . . . . . . 4 Reused 9 | . . . . . . . . . . . . . . . . . . 4 . . . . . . 1 . . . . . . . . . . 4 Traps Extracted 11 | . . . . . . . 5 . . . . . . . . . . 6 . . . . . . . . . . . . . . . . . . Installed 2 | . . . . . . . . . . . . . . . . . . 2 . . . . . . . . . . . . . . . . . . Triggered 25 | . . . . . . . . . 2 . . . . 1 . . . 4 . . 1 1 . . 2 . . 10 . . . . . . . 4 Most Traps Carried 6 | . . . . 5 5 5 5 5 5 5 5 5 5 5 5 5 5 6 6 6 6 6 6 6 6 . . . . . . . . . . . Machines | -11 -10 -10 -9 -9 -9 -8 -8 -7 -7 -7 -7 -6 -6 -6 -6 -6 -6 -5 -5 -5 -5 -5 -5 -4 -4 -4 -4 -4 -3 -3 -3 -3 -2 -2 -1 -1 ---------- Run | Scr Mat Min Mat Min Exi Min Mat Fac Low Low Dat Pro Fac Ext Cet Arc Hub Fac Was Fac Upp Upp Zhi Pro Fac Upp Upp War Pro Res Qua Sec Res Tes Acc Com Machines Disabled 71 | . 1 . 1 . . 2 1 . . . 1 . 5 4 . . 4 6 . 13 . . . . 3 . . . 1 1 4 7 . 10 3 4 Max in Single Turn 4 | . 1 . 1 . . 1 1 . . . 1 . 3 1 . . 1 3 . 4 . . . . 1 . . . 1 1 1 1 . 1 2 1 Garrison Access 12 | . . . . . . . 1 1 . . . . 2 . . . . . . 3 . . . . 1 . . . . 2 . . 1 1 . . Phase Generator 1 | . . . . . . . . . . . . . . . . . . . . . . . . . . . . . . . . . . . . 1 Network Hub 2 | . . . . . . . . . . . . . . . . . 2 . . . . . . . . . . . . . . . . . . . Machines Sabotaged 1 | . . . . . . . . . . . . . . . . . 1 . . . . . . . . . . . . . . . . . . . Garrisons Compromised . | . . . . . . . . . . . . . . . . . . . . . . . . . . . . . . . . . . . . . Overloaded Fab Kills . | . . . . . . . . . . . . . . . . . . . . . . . . . . . . . . . . . . . . . Hacking | -11 -10 -10 -9 -9 -9 -8 -8 -7 -7 -7 -7 -6 -6 -6 -6 -6 -6 -5 -5 -5 -5 -5 -5 -4 -4 -4 -4 -4 -3 -3 -3 -3 -2 -2 -1 -1 --------- Run | Scr Mat Min Mat Min Exi Min Mat Fac Low Low Dat Pro Fac Ext Cet Arc Hub Fac Was Fac Upp Upp Zhi Pro Fac Upp Upp War Pro Res Qua Sec Res Tes Acc Com Machines Accessed 198 | . 9 . 17 1 1 . 13 19 . . 4 . 17 5 . . 1 13 . 25 . . 4 . 20 . . 2 . 7 8 4 3 9 6 10 Terminals 101 | . 6 . 11 . . . 10 6 . . . . 7 5 . . 1 8 . 12 . . . . 7 . . . . 1 5 3 . 7 5 7 Fabricators 28 | . . . . . . . . 5 . . . . 6 . . . . 3 . 5 . . . . 6 . . . . 2 . . . . 1 . Repair Stations 17 | . 1 . 2 . . . . 1 . . . . 1 . . . . 1 . 1 . . . . 3 . . . . 1 1 1 1 1 . 2 Recycling Units 18 | . 2 . 2 . . . 1 3 . . . . 1 . . . . 1 . 4 . . . . 2 . . . . . . . 1 . . 1 Scanalyzers 9 | . . . 2 . . . 1 2 . . . . . . . . . . . . . . . . 1 . . . . 1 2 . . . . . Garrison Access 13 | . . . . . . . 1 2 . . . . 2 . . . . . . 3 . . . . 1 . . . . 2 . . 1 1 . . Total Hacks 853 | . 25 . 46 1 1 . 30 61 . . 30 . 46 14 . . 5 99 . 117 . . 17 . 111 . . 7 . 22 62 25 5 69 24 36 Successful 675 | . 17 . 33 1 1 . 25 38 . . 30 . 24 5 . . 1 75 . 96 . . 17 . 96 . . 7 . 21 54 18 5 67 21 23 Failed 172 | . 7 . 12 . . . 5 23 . . . . 22 9 . . 4 23 . 20 . . . . 14 . . . . 1 8 6 . 2 3 13 Catastrophic 21 | . . . 2 . . . 1 2 . . . . 1 2 . . 1 5 . 4 . . . . 1 . . . . . . . . . . 2 Database Lockouts 6 | . 1 . 1 . . . . . . . . . . . . . . 1 . 1 . . . . 1 . . . . . . 1 . . . . Manual 412 | . 15 . 26 . . . 20 31 . . . . 27 3 1 . 5 53 . 69 . . . . 55 . . 1 . 6 17 13 2 31 11 26 Terminals 473 | . 18 . 30 . . . 23 27 . . . . 19 14 . . 5 63 . 75 . . . . 60 . . . . 5 30 17 . 43 15 29 Fabricators 111 | . . . . . . . . 17 . . . . 19 . . . . 18 . 21 . . . . 23 . . . . 4 . . . . 9 . Repair Stations 112 | . 4 . 7 . . . . 2 . . . . 2 . . . . 15 . 8 . . . . 21 . . . . 6 8 8 2 25 . 4 Recycling Units 38 | . 3 . 2 . . . 1 9 . . . . 3 . . . . 3 . 8 . . . . 4 . . . . . . . 2 . . 3 Scanalyzers 47 | . . . 7 . . . 5 4 . . . . . . . . . . . . . . . . 2 . . . . 5 24 . . . . . Garrison Access 16 | . . . . . . . 1 2 . . . . 3 . . . . . . 5 . . . . 1 . . . . 2 . . 1 1 . . Terminal Hacks 292 | . 5 . 11 1 1 . 9 8 . . 30 . 3 5 . . . 29 . 41 . . 17 . 35 . . 7 . 2 19 10 . 33 10 16 Record 17 | . . . . . 1 . . . . . 11 . . . . . . . . . . . 5 . . . . . . . . . . . . . Part Schematic 38 | . . . . . . . . . . . 11 . . . . . . 2 . 5 . . 4 . 3 . . . . . 6 1 . 6 . . Robot Schematic 5 | . . . . . . . . . . . 5 . . . . . . . . . . . . . . . . . . . . . . . . . Robot Analysis 18 | . 2 . 1 . . . . . . . . . . . . . . . . 2 . . 4 . 1 . . . . . 4 2 . 2 . . Prototype ID Bank 41 | . 1 . 4 . . . . 1 . . 3 . . 1 . . . 3 . 2 . . 4 . 3 . . 6 . . 3 1 . 8 . 1 Open Door 6 | . . . . 1 . . . . . . . . . 1 . . . . . . . . . . . . . 1 . . . . . . 3 . Branch Access Points 6 | . . . . . . . . 1 . . . . 1 . . . . . . 1 . . . . 1 . . . . 1 . . . . 1 . Machine Index 7 | . . . . . . . . 1 . . . . . . . . . 1 . 1 . . . . 1 . . . . 1 . 1 . . . 1 Terminal Index 4 | . . . . . . . . . . . . . 1 . . . . 1 . . . . . . . . . . . . . . . 1 1 . Fabricator Index 1 | . . . . . . . . . . . . . . . . . . . . . . . . . . . . . . . . . . 1 . . Repair Station Index 2 | . . . . . . . . . . . . . . . . . . . . . . . . . . . . . . . . 1 . . 1 . Recycling Unit Index 1 | . . . . . . . . . . . . . . . . . . . . . . . . . 1 . . . . . . . . . . . Scanalyzer Index 1 | . . . . . . . . . . . . . . . . . . 1 . . . . . . . . . . . . . . . . . . Alert Level 39 | . . . 3 . . . 3 . . . . . . 1 . . . 3 . 10 . . . . 4 . . . . . 3 2 . 5 2 3 Unreport Threat 31 | . . . 2 . . . 1 . . . . . . . . . . 4 . 4 . . . . 5 . . . . . 1 2 . 4 2 6 Locate Traps 17 | . 1 . . . . . 2 1 . . . . . 1 . . . 2 . 2 . . . . 3 . . . . . 2 . . 2 . 1 Disarm Traps 1 | . . . . . . . . . . . . . . 1 . . . . . . . . . . . . . . . . . . . . . . Reprogram Traps 4 | . . . . . . . . . . . . . . . . . . 3 . . . . . . . . . . . . . . . . . 1 Patrol Status 5 | . . . . . . . . 2 . . . . . . . . . . . 1 . . . . 1 . . . . . . . . 1 . . Transport Status 2 | . . . . . . . 1 1 . . . . . . . . . . . . . . . . . . . . . . . . . . . . Recall Investigation 2 | . . . . . . . . . . . . . . . . . . . . 1 . . . . . . . . . . . . . . . 1 Recall Extermination 9 | . . . . . . . . . . . . . . . . . . 3 . 1 . . . . 4 . . . . . . . . 1 . . Recall Reinforcements 5 | . . . . . . . . . . . . . . . . . . . . 2 . . . . 2 . . . . . . . . 1 . . Recall Assault 1 | . . . . . . . . . . . . . . . . . . . . 1 . . . . . . . . . . . . . . . . Hauler Manifests 13 | . 1 . 1 . . . 1 1 . . . . 1 . . . . 3 . 1 . . . . 3 . . . . . . . . 1 . . Zone Layout 14 | . . . . . . . 1 . . . . . . . . . . 3 . 7 . . . . 3 . . . . . . . . . . . Disengage Seal 2 | . . . . . . . . . . . . . . . . . . . . . . . . . . . . . . . . . . . . 2 Fabricator Hacks 66 | . . . . . . . . 7 . . . . 8 . . . . 13 . 14 . . . . 14 . . . . 2 . . . . 8 . Network Status 5 | . . . . . . . . 2 . . . . 1 . . . . 1 . 1 . . . . . . . . . . . . . . . . Load Schematic 42 | . . . . . . . . 5 . . . . 5 . . . . 7 . 9 . . . . 10 . . . . 2 . . . . 4 . Build 19 | . . . . . . . . . . . . . 2 . . . . 5 . 4 . . . . 4 . . . . . . . . . 4 . Repair Station Hacks 109 | . 4 . 6 . . . . 2 . . . . 2 . . . . 13 . 8 . . . . 21 . . . . 6 8 8 2 25 . 4 Scan Component 56 | . 2 . 3 . . . . 1 . . . . 1 . . . . 7 . 4 . . . . 11 . . . . 3 4 4 1 13 . 2 Repair 53 | . 2 . 3 . . . . 1 . . . . 1 . . . . 6 . 4 . . . . 10 . . . . 3 4 4 1 12 . 2 Recycling Unit Hacks 3 | . 1 . . . . . . . . . . . . . . . . . . . . . . . 2 . . . . . . . . . . . Retrieve Matter 1 | . . . . . . . . . . . . . . . . . . . . . . . . . 1 . . . . . . . . . . . Retrieve Components 2 | . 1 . . . . . . . . . . . . . . . . . . . . . . . 1 . . . . . . . . . . . Scanalyzer 44 | . . . 5 . . . 5 3 . . . . . . . . . . . . . . . . 2 . . . . 5 24 . . . . . Insert Component 25 | . . . 3 . . . 3 2 . . . . . . . . . . . . . . . . 1 . . . . 3 13 . . . . . Analyze 19 | . . . 2 . . . 2 1 . . . . . . . . . . . . . . . . 1 . . . . 2 11 . . . . . Garrison Access Hacks 12 | . . . . . . . 1 1 . . . . 2 . . . . . . 3 . . . . 1 . . . . 2 . . 1 1 . . Seal Access 12 | . . . . . . . 1 1 . . . . 2 . . . . . . 3 . . . . 1 . . . . 2 . . 1 1 . . Unauthorized Hacks 149 | . 7 . 11 . . . 10 17 . . . . 9 . . . 1 20 . 30 . . . . 21 . . . . 4 3 . 2 8 3 3 Terminals 89 | . 5 . 9 . . . 9 7 . . . . 5 . . . 1 12 . 16 . . . . 10 . . . . 2 3 . . 8 2 . Track 11 | . . . . . . . . . . . . . . . . . . 2 . 5 . . . . 2 . . . . . 1 . . . 1 . Assimilate 13 | . 1 . . . . . . 1 . . . . 2 . . . . 1 . 2 . . . . 1 . . . . 1 . . . 3 1 . Botnet 47 | . 3 . 8 . . . 7 5 . . . . 3 . . . . 5 . 6 . . . . 4 . . . . 1 1 . . 4 . . Detonate 2 | . . . . . . . . . . . . . . . . . . 1 . 1 . . . . . . . . . . . . . . . . Disrupt 5 | . . . . . . . . . . . . . . . . . . 2 . 1 . . . . 1 . . . . . . . . 1 . . Operators 10 | . 1 . 1 . . . 2 1 . . . . . . . . . 1 . 1 . . . . 2 . . . . . 1 . . . . . Sabotage 1 | . . . . . . . . . . . . . . . . . 1 . . . . . . . . . . . . . . . . . . . Fabricators 31 | . . . . . . . . 4 . . . . 3 . . . . 5 . 7 . . . . 9 . . . . 2 . . . . 1 . Prioritize 6 | . . . . . . . . . . . . . . . . . . 2 . 1 . . . . 2 . . . . . . . . . 1 . Liberate 1 | . . . . . . . . . . . . . . . . . . . . . . . . . 1 . . . . . . . . . . . Haulers 4 | . . . . . . . . 1 . . . . 1 . . . . 1 . 1 . . . . . . . . . . . . . . . . Recompile 20 | . . . . . . . . 3 . . . . 2 . . . . 2 . 5 . . . . 6 . . . . 2 . . . . . . Repair Stations . | . . . . . . . . . . . . . . . . . . . . . . . . . . . . . . . . . . . . . Recycling Units 29 | . 2 . 2 . . . 1 6 . . . . 1 . . . . 3 . 7 . . . . 2 . . . . . . . 2 . . 3 Monitor 1 | . . . . . . . . . . . . . . . . . . 1 . . . . . . . . . . . . . . . . . . Reject 8 | . . . . . . . . 2 . . . . . . . . . . . 4 . . . . . . . . . . . . 1 . . 1 Recyclers 6 | . . . . . . . . 2 . . . . . . . . . 1 . 1 . . . . 1 . . . . . . . . . . 1 Mask 9 | . . . . . . . . 2 . . . . 1 . . . . 1 . 2 . . . . 1 . . . . . . . 1 . . 1 Tunnel 5 | . 2 . 2 . . . 1 . . . . . . . . . . . . . . . . . . . . . . . . . . . . . Scanalyzers . | . . . . . . . . . . . . . . . . . . . . . . . . . . . . . . . . . . . . . Garrison Access . | . . . . . . . . . . . . . . . . . . . . . . . . . . . . . . . . . . . . . Data Cores Recovered 1 | . . . . . . . . . . . . . . . . . . . . 1 . . . . . . . . . . . . . . . . Used . | . . . . . . . . . . . . . . . . . . . . . . . . . . . . . . . . . . . . . Hacking Detections 128 | . 7 . 15 . . . 9 13 . . . . 14 5 . . 1 10 . 13 . . . . 10 . . . . 3 8 4 . 6 3 7 Full Trace Events 12 | . . . 1 . . . . 2 . . . . 5 . . . . 1 . . . . . . . . . . . . 1 . . . 1 1 Feedback Events 1 | . . . . . . . . . . . . . 1 . . . . . . . . . . . . . . . . . . . . . . . Corruption 1 | . . . . . . . . . . . . . 1 . . . . . . . . . . . . . . . . . . . . . . . Feedback Blocked . | . . . . . . . . . . . . . . . . . . . . . . . . . . . . . . . . . . . . . Robot Schematics Acquired 5 | . . . . . . . . . . . 5 . . . . . . . . . . . . . . . . . . . . . . . . . Robots Built . | . . . . . . . . . . . . . . . . . . . . . . . . . . . . . . . . . . . . . Authchips . | . . . . . . . . . . . . . . . . . . . . . . . . . . . . . . . . . . . . . Time . | . . . . . . . . . . . . . . . . . . . . . . . . . . . . . . . . . . . . . Total Robot Build Rating . | . . . . . . . . . . . . . . . . . . . . . . . . . . . . . . . . . . . . . Part Schematics Acquired 61 | . . . 1 . . . 2 1 . . 11 . . . . . . 2 . 5 . . 4 . 4 . . . . 2 19 1 . 9 . . Parts Built 20 | . . . . . . . . . . . . . 2 . . . . 5 . 4 . . . . 4 . . . . . . . . . 5 . Authchips 16 | . . . . . . . . . . . . . 1 . . . . 4 . 4 . . . . 4 . . . . . . . . . 3 . Time 1317 | . . . . . . . . . . . . . 168 . . . . 384 . 232 . . . . 283 . . . . . . . . . 250 . Total Part Build Rating 138 | . . . . . . . . . . . . . 12 . . . . 29 . 27 . . . . 29 . . . . . . . . . 41 . Parts Repaired 52 | . 2 . 3 . . . . 1 . . . . 1 . . . . 6 . 4 . . . . 10 . . . . 2 4 4 1 12 . 2 Time 2915 | . 52 . 238 . . . . 38 . . . . 22 . . . . 282 . 427 . . . . 734 . . . . 131 131 116 54 600 . 90 Parts Recycled . | . . . . . . . . . . . . . . . . . . . . . . . . . . . . . . . . . . . . . Recycled Matter . | . . . . . . . . . . . . . . . . . . . . . . . . . . . . . . . . . . . . . Retrieved Matter . | . . . . . . . . . . . . . . . . . . . . . . . . . . . . . . . . . . . . . Retrieved Components 13 | . 10 . . . . . . . . . . . . . . . . . . . . . . . 3 . . . . . . . . . . . Parts Scanalyzed 15 | . . . 1 . . . 2 1 . . . . . . . . . . . . . . . . 1 . . . . 2 8 . . . . . Part Schematics Acquired 16 | . . . 1 . . . 2 1 . . . . . . . . . . . . . . . . 1 . . . . 2 9 . . . . . Parts Damaged . | . . . . . . . . . . . . . . . . . . . . . . . . . . . . . . . . . . . . . Bothacking | -11 -10 -10 -9 -9 -9 -8 -8 -7 -7 -7 -7 -6 -6 -6 -6 -6 -6 -5 -5 -5 -5 -5 -5 -4 -4 -4 -4 -4 -3 -3 -3 -3 -2 -2 -1 -1 ------------ Run | Scr Mat Min Mat Min Exi Min Mat Fac Low Low Dat Pro Fac Ext Cet Arc Hub Fac Was Fac Upp Upp Zhi Pro Fac Upp Upp War Pro Res Qua Sec Res Tes Acc Com Used RIF Installer . | . . . . . . . . . . . . . . . . . . . . . . . . . . . . . . . . . . . . . Robots Hacked 2 | . . . . . . . . 1 . . . . . . . . . . . 1 . . . . . . . . . . . . . . . . Non-combat 2 | . . . . . . . . 1 . . . . . . . . . . . 1 . . . . . . . . . . . . . . . . Combat . | . . . . . . . . . . . . . . . . . . . . . . . . . . . . . . . . . . . . . Robot Hacks Applied 2 | . . . . . . . . 1 . . . . . . . . . . . 1 . . . . . . . . . . . . . . . . find_recycling 2 | . . . . . . . . 1 . . . . . . . . . . . 1 . . . . . . . . . . . . . . . . Relay Couplers Released 10 | . . . . . . . . . . . . . . . . . . . . 3 . . . . . . . . . 3 . . . 4 . . Programmers 10 | . . . . . . . . . . . . . . . . . . . . 3 . . . . . . . . . 3 . . . 4 . . Fabnet Peak Effective % . | . . . . . . . . . . . . . . . . . . . . . . . . . . . . . . . . . . . . . Robots Rewired 15 | . . . . . . . . . . . . . . 14 . . . . . . . . . . . . . . 1 . . . . . . . Allies Hacked 3 | . . . . . . . . 1 . . . . 1 . . . . . . . . . . . . . . . . . . . . . 1 . Hacks Repelled . | . . . . . . . . . . . . . . . . . . . . . . . . . . . . . . . . . . . . . Allies | -11 -10 -10 -9 -9 -9 -8 -8 -7 -7 -7 -7 -6 -6 -6 -6 -6 -6 -5 -5 -5 -5 -5 -5 -4 -4 -4 -4 -4 -3 -3 -3 -3 -2 -2 -1 -1 -------- Run | Scr Mat Min Mat Min Exi Min Mat Fac Low Low Dat Pro Fac Ext Cet Arc Hub Fac Was Fac Upp Upp Zhi Pro Fac Upp Upp War Pro Res Qua Sec Res Tes Acc Com Total Allies 51 | . 1 2 . 1 . . . 1 . . . . 2 21 5 . . 1 . 4 . . . . 3 . . . 1 1 . . . 1 1 6 Largest Group 13 | . 1 2 2 1 . . . 1 . . . . 1 13 12 6 5 1 . 3 . . . . 3 . . . 1 1 . . . 1 1 5 Highest-Rated Group 639 | . 10 42 42 31 . . . 10 . . . . 26 472 639 633 480 26 . 93 . . . . 90 . . . 48 26 . . . 26 45 73 Highest-Rated Ally 159 | . 10 31 31 31 . . . 10 . . . . 26 159 159 153 96 26 . 31 . . . . 30 . . . 48 26 . . . 26 45 15 Total Orders 23 | . 6 . . . . . . . . . . . . 9 2 3 . . . 2 . . . . . . . . . . . . . 1 . . STAY 7 | . 3 . . . . . . . . . . . . . . 2 . . . 1 . . . . . . . . . . . . . 1 . . FOLLOW 6 | . 3 . . . . . . . . . . . . 1 . 1 . . . 1 . . . . . . . . . . . . . . . . RETURN 10 | . . . . . . . . . . . . . . 8 2 . . . . . . . . . . . . . . . . . . . . . Ally Attacks 424 | . . . 14 . . . . . . . . . . 177 131 21 15 . . 17 . . . . 14 . . . 1 . . . . . . 34 Total Damage 11367 | . . . 211 . . . . . . . . . . 4084 3955 818 923 . . 310 . . . . 429 . . . . . . . . . . 637 Kills 68 | . . . 2 . . . . . . . . . . 26 24 5 5 . . 4 . . . . 2 . . . . . . . . . . . Allies Corrupted 2 | . . . . . . . . . . . . . . . . . 2 . . . . . . . . . . . . . . . . . . . Allies Melted 3 | . . . . . . . . . . . . . . . . . . . . . . . . . 1 . . . . . . . 1 . 1 . Intel | -11 -10 -10 -9 -9 -9 -8 -8 -7 -7 -7 -7 -6 -6 -6 -6 -6 -6 -5 -5 -5 -5 -5 -5 -4 -4 -4 -4 -4 -3 -3 -3 -3 -2 -2 -1 -1 ------- Run | Scr Mat Min Mat Min Exi Min Mat Fac Low Low Dat Pro Fac Ext Cet Arc Hub Fac Was Fac Upp Upp Zhi Pro Fac Upp Upp War Pro Res Qua Sec Res Tes Acc Com Robot Analysis Total 18 | . 2 . 1 . . . . . . . . . . . . . . . . 2 . . 4 . 1 . . . . . 4 2 . 2 . . Derelict Logs Recovered 11 | . . 1 . 1 . . . . 1 1 . 2 . . . . . . . . 1 1 . 1 . 1 1 . . . . . . . . . Drone Launches 16 | . . . . . . . . . . . . . . 10 6 . . . . . . . . . . . . . . . . . . . . . Drone Recoveries 12 | . . . . . . . . . . . . . . 9 3 . . . . . . . . . . . . . . . . . . . . . Exploration | -11 -10 -10 -9 -9 -9 -8 -8 -7 -7 -7 -7 -6 -6 -6 -6 -6 -6 -5 -5 -5 -5 -5 -5 -4 -4 -4 -4 -4 -3 -3 -3 -3 -2 -2 -1 -1 ------------- Run | Scr Mat Min Mat Min Exi Min Mat Fac Low Low Dat Pro Fac Ext Cet Arc Hub Fac Was Fac Upp Upp Zhi Pro Fac Upp Upp War Pro Res Qua Sec Res Tes Acc Com Turns Passed 70830 | 86 3186 1413 4684 1595 594 846 6097 2793 1313 668 661 1818 3124 3346 566 1398 900 3218 366 3127 687 418 372 1135 5476 838 1386 1297 1898 1209 6479 1969 947 2217 858 1845 Spaces Moved 40083 | 46 1157 533 1556 411 247 317 1713 3576 359 190 187 521 3473 877 162 647 281 4355 106 3179 260 172 145 471 6398 346 500 653 629 407 3271 590 502 855 295 696 Core 122 | 2 . . . . . . . . . . . . . . . . . 34 . 1 . . . . 85 . . . . . . . . . . . Treads 21346 | 44 1157 533 1556 411 247 317 1713 212 359 190 187 521 437 877 162 647 281 215 106 396 260 172 145 471 987 346 500 653 629 407 3271 590 502 855 295 695 Legs . | . . . . . . . . . . . . . . . . . . . . . . . . . . . . . . . . . . . . . Wheels . | . . . . . . . . . . . . . . . . . . . . . . . . . . . . . . . . . . . . . Hover . | . . . . . . . . . . . . . . . . . . . . . . . . . . . . . . . . . . . . . Flight 18615 | . . . . . . . . 3364 . . . . 3036 . . . . 4106 . 2782 . . . . 5326 . . . . . . . . . . 1 Fastest Speed 25 | 50 160 240 240 240 240 240 240 27 320 320 320 320 26 325 240 160 240 26 240 28 240 240 240 160 25 160 240 160 240 160 160 240 160 160 160 30 Average Speed 134 | 155 239 240 240 240 240 240 275 45 320 320 320 320 63 325 255 176 240 39 240 54 240 240 240 189 50 239 240 183 240 237 179 240 160 160 160 151 Slowest Speed 560 | 160 240 240 240 400 240 240 480 560 560 320 320 320 325 403 400 240 240 240 240 320 240 240 240 240 300 240 240 240 240 240 240 240 160 160 160 165 Overloaded Moves 94 | . . . . . . . . . . . . . . . . . . 22 . . . . . . 72 . . . . . . . . . . . Propulsion Burnouts . | . . . . . . . . . . . . . . . . . . . . . . . . . . . . . . . . . . . . . Robots Hopped 54 | . . . . . . . . 11 . . . . 13 . . . . 13 . 5 . . . . 12 . . . . . . . . . . . Cave-ins Triggered . | . . . . . . . . . . . . . . . . . . . . . . . . . . . . . . . . . . . . . Teleports 1 | . . . . . . . . . . . . . . . . . . . . . . . . . . . . . . . . 1 . . . . Exploration Rate (%) 57 | 5 98 88 99 65 55 75 78 50 53 49 77 63 45 81 59 98 21 39 83 61 43 40 60 65 48 54 64 89 70 20 94 20 24 71 7 33 Regions Visited 36 Branch Regions 24 Pre-discovered Areas 12 | . 2 . 2 1 1 . 1 . . . 1 . . . . . . . . . . . 3 . . 1 . . . . . . . . . . Known Exits Taken 26 | . . . . . . . . 1 1 1 1 1 1 1 1 1 1 . . 1 1 1 1 1 1 1 1 1 1 1 1 1 1 1 1 . Unknown Exits Taken 8 | 1 1 1 1 1 1 1 1 . . . . . . . . . . . . . . . . . . . . . . . . . . . . . Scrap Searched 14 | . . . . 1 . . . . 3 1 . 3 . . . . . . . . 1 . . . . 3 2 . . . . . . . . . Spaces Dug 543 | . . . . . . . 18 32 22 5 . . 52 4 . . 5 64 . 60 . . . 21 114 . 13 . 33 2 4 12 18 35 14 15 Terrain Destroyed 2005 | . . . . . . 13 36 33 96 42 38 97 108 12 8 . 36 142 138 214 50 1 . 71 182 1 50 4 168 28 24 32 25 142 82 132 Melee 233 | . . . . . . . . 31 . . . . 32 4 . . . 64 . 35 . . . . 67 . . . . . . . . . . . Projectile 525 | . . . . . . 2 11 2 15 9 1 9 40 8 . . 36 1 . 28 3 1 . 52 67 1 50 4 41 9 5 22 7 37 16 48 AOE 1244 | . . . . . . 11 25 . 81 33 37 88 36 . 8 . . 77 138 151 47 . . 19 48 . . . 127 19 16 10 18 105 66 84 Terrain Rammed . | . . . . . . . . . . . . . . . . . . . . . . . . . . . . . . . . . . . . . Walls Destroyed . | . . . . . . . . . . . . . . . . . . . . . . . . . . . . . . . . . . . . . Machines Disabled . | . . . . . . . . . . . . . . . . . . . . . . . . . . . . . . . . . . . . . Actions | -11 -10 -10 -9 -9 -9 -8 -8 -7 -7 -7 -7 -6 -6 -6 -6 -6 -6 -5 -5 -5 -5 -5 -5 -4 -4 -4 -4 -4 -3 -3 -3 -3 -2 -2 -1 -1 --------- Run | Scr Mat Min Mat Min Exi Min Mat Fac Low Low Dat Pro Fac Ext Cet Arc Hub Fac Was Fac Upp Upp Zhi Pro Fac Upp Upp War Pro Res Qua Sec Res Tes Acc Com Total 53914 | 58 1457 604 2277 1013 252 351 2882 4610 471 222 225 607 4186 1290 312 902 399 5695 168 4353 297 176 173 609 8221 355 605 745 938 609 3783 1004 626 1575 589 1275 Wait 9210 | . 143 28 490 581 1 1 889 789 48 2 4 16 427 174 88 139 54 992 6 850 17 1 . 28 1222 2 34 27 254 145 281 290 95 564 212 316 Move 39943 | 45 1156 532 1555 410 246 316 1712 3554 358 189 186 520 3446 876 161 646 280 4331 105 3168 259 171 144 470 6373 345 499 652 628 406 3270 589 501 854 294 696 Hop 51 | . . . . . . . . 10 . . . . 13 . . . . 11 . 5 . . . . 12 . . . . . . . . . . . Pick Up 700 | 7 37 1 22 6 2 2 30 71 2 1 6 3 67 1 14 54 . 101 3 55 . . 5 27 86 . 2 10 . 5 35 9 3 10 6 17 Fast Attach 366 | 5 5 . 9 . . . 8 15 4 2 1 3 14 2 4 15 . 26 . 35 . . 10 3 85 4 2 17 . 9 36 5 2 23 1 21 Attach 195 | 1 4 1 8 3 . 1 7 19 3 1 4 1 27 . 5 3 3 16 8 21 . . . 8 18 . 2 2 . 3 5 3 1 1 4 12 Detach 64 | . . . 1 . . . 1 6 2 1 . 1 9 1 4 . . 7 . 15 . . . 1 8 . . . . 2 . . . . . 5 Swap 400 | . 13 3 20 2 . 3 27 16 7 . 4 18 14 16 4 . 10 18 4 22 8 . 1 9 19 . 10 3 15 7 34 23 10 29 19 12 Drop 754 | . 27 4 40 6 3 1 32 56 5 3 6 6 54 2 20 35 . 81 1 48 . . 13 4 131 4 4 27 . 9 67 10 2 21 4 28 Fire 1462 | . 67 28 119 3 . 26 106 11 42 23 13 39 60 17 11 . 52 6 41 64 13 1 . 59 110 . 52 7 40 23 55 72 12 73 49 168 Melee 472 | . 1 . . . . . 1 62 . . 1 . 53 21 . 10 . 101 . 70 . . . . 152 . . . . . . . . . . . Ram . | . . . . . . . . . . . . . . . . . . . . . . . . . . . . . . . . . . . . . Kick . | . . . . . . . . . . . . . . . . . . . . . . . . . . . . . . . . . . . . . Crush 48 | . 4 7 13 2 . . 12 1 . . . . 2 . . . . . . . . . . . 4 . . . . . . 3 . . . . Escape Stasis . | . . . . . . . . . . . . . . . . . . . . . . . . . . . . . . . . . . . . . Rewire 184 | . . . . . . 1 . . . . . . . 179 . . . . . . . 3 . . . . . . 1 . . . . . . . Trap 63 | . . . . . . . 57 . . . . . . . . . . 5 . . . . . . 1 . . . . . . . . . . . Miscellaneous 2 | . . . . . . . . . . . . . . 1 1 . . . . . . . . . . . . . . . . . . . . . Route ------- -11/Scrapyard -10/Materials (discovered 5 exits: *Mat x3 / [*Min x2]) -10/Mines (discovered 2 exits: *Mat x2) -9/Materials (discovered 6 exits: *Mat x3 / *Min x2 / *Sto) -9/Mines (discovered 3 exits: *Mat x2 / *Exi) -9/Exiles -8/Mines -8/Materials (discovered 3 exits: *Fac x3) -7/Factory (discovered 4 exits: *Fac x2 / *Low x2) -7/Lower Caves -7/Lower Caves -7/Data Miner -6/Proximity Caves -6/Factory (discovered 6 exits: *Fac x2 / Low x2 / *Ext x2) -6/Extension (discovered 2 exits: *Fac / *Cet) -6/Cetus (discovered 2 exits: *Fac / *Arc) -6/Archives (discovered 3 exits: *Fac / *Hub x2) -6/Hub_04(d) -5/Factory (discovered 2 exits: *Fac / *Upp) -5/Waste -5/Factory (discovered 4 exits: *Fac x2 / *Upp x2) -5/Upper Caves -5/Upper Caves -5/Zhirov -4/Proximity Caves -4/Factory (discovered 7 exits: *Res x4 / *Upp x2 / Arm) -4/Upper Caves -4/Upper Caves (discovered 2 exits: *Res / *War) -4/Warlord -3/Proximity Caves -3/Research (discovered 3 exits: *Res / *Qua x2) -3/Quarantine (discovered 2 exits: *Res / *Sec) -3/Section 7 -2/Research (discovered 3 exits: *Acc x2 / *Tes) -2/Testing -1/Access -1/Command (discovered 2 exits: [Sur x2]) History --------- Turn | Location | Event 16 | -11/Scrapyard | Discovered new exit (range 15) 87 | -11/Scrapyard | Entered Materials 249 | -10/Materials | Discovered new exit (range 9) 296 | -10/Materials | Central database locked down 326 | -10/Materials | Build established: Mutant 430 | -10/Materials | Discovered new exit (range 11) 713 | -10/Materials | Discovered new exit (range 16) 1228 | -10/Materials | Discovered new exit (range 3) 2065 | -10/Materials | Discovered new exit (range 12) 3105 | -10/Materials | Repaired Lgt. Treads 3133 | -10/Materials | Repaired Lgt. Treads 3273 | -10/Materials | Entered Mines 3287 | -10/Mines | Core integrity fell below 50% 3332 | -10/Mines | Found a damaged Exp. Sensor Array with a note attached 3343 | -10/Mines | Found Prototype Device 3586 | -10/Mines | Discovered new exit (range 14) 4348 | -10/Mines | Discovered new exit (range 12) 4686 | -10/Mines | Entered Materials 4686 | -9/Materials | Accompanied by 2 allies 4686 | -9/Materials | Evolved 2 slots: Utility x2 4687 | -9/Materials | Identified exit to Storage 4691 | -9/Materials | Led the pair of lost Derelicts to an unsafe place 4763 | -9/Materials | Discovered new exit (range 6) 5468 | -9/Materials | Central database locked down 5634 | -9/Materials | Discovered new exit (range 8) 6423 | -9/Materials | Discovered new exit (range 15) 7018 | -9/Materials | Identified Exp. Sensor Array 7211 | -9/Materials | Discovered new exit (range 15) 7735 | -9/Materials | Discovered new exit (range 7) 8749 | -9/Materials | Repaired Broken Exp. Sensor Array 9092 | -9/Materials | Repaired Adv. Beam Cannon 9278 | -9/Materials | Repaired Adv. Beam Cannon 9370 | -9/Materials | Entered Mines 9381 | -9/Mines | Received a Mining Laser from a helpful Derelict 9396 | -9/Mines | Met a Derelict bent on vengeance 9455 | -9/Mines | Met a Derelict who couldn't figure out how to use a Trap Extractor 9491 | -9/Mines | Assembled infested the area 10485 | -9/Mines | Discovered new exit (range 5) 10674 | -9/Mines | Found a hidden stash of uninstalled traps 10809 | -9/Mines | Discovered new exit (range 6) 10838 | -9/Mines | Learned location of Storage (-9) 10848 | -9/Mines | Deemed a non-threat by the Exiles lab entrance 10848 | -9/Mines | Discovered new exit (range 5) 10965 | -9/Mines | Entered Exiles 11023 | -9/Exiles | Met 8R-AWN 11064 | -9/Exiles | Met EX-HEX 11157 | -9/Exiles | Met EX-DEC 11169 | -9/Exiles | Learned location of Zion (-6) 11208 | -9/Exiles | Met EX-BIN 11354 | -9/Exiles | Discovered new exit (range 10) 11559 | -9/Exiles | Entered Mines 12390 | -8/Mines | Discovered new exit (range 4) 12405 | -8/Mines | Entered Materials 12405 | -8/Materials | Evolved 2 slots: Propulsion x1, Utility x1 14125 | -8/Materials | Discovered new exit (range 12) 15233 | -8/Materials | Discovered new exit (range 16) 17116 | -8/Materials | Discovered new exit (range 15) 18405 | -8/Materials | First assault squad dispatched 18502 | -8/Materials | Entered Factory 18502 | -7/Factory | Evolved 2 slots: Propulsion x1, Utility x1 18633 | -7/Factory | Build established: Hauler-Mutant 18967 | -7/Factory | Build established: Hacker-Sprinter 19074 | -7/Factory | Discovered new exit (range 12) 19108 | -7/Factory | Repaired Imp. Light Armor Plating 19142 | -7/Factory | Identified exit to Factory 19276 | -7/Factory | Identified exit to Lower Caves 19751 | -7/Factory | Discovered exit to Factory (range 5) 19975 | -7/Factory | Build established: Hacker-Scout 20784 | -7/Factory | Build established: Hauler-Mutant 21295 | -7/Factory | Entered Lower Caves 22277 | -7/Lower Caves | Identified exit to Lower Caves 22339 | -7/Lower Caves | Encountered a Warlord checkpoint 22608 | -7/Lower Caves | Entered another Lower Caves area 23174 | -7/Lower Caves | Discovered new exit (range 15) 23244 | -7/Lower Caves | Identified exit to Data Miner 23260 | -7/Lower Caves | Learned Factory stockpile data 23276 | -7/Lower Caves | Entered Data Miner 23277 | -7/Data Miner | Discovered new exit (range 6) 23338 | -7/Data Miner | Met Data Miner 23405 | -7/Data Miner | Learned location of Section 7 (-3) 23405 | -7/Data Miner | Acquired the access code to Warlord's prototype stash 23457 | -7/Data Miner | Received God Mode back door access code from Data Miner 23730 | -7/Data Miner | Data Conduit disabled 23934 | -7/Data Miner | Identified exit to Proximity Caves 23937 | -7/Data Miner | Entered Proximity Caves 24058 | -6/Proximity Caves | Learned Factory trap positions 25458 | -6/Proximity Caves | Discovered exit to Factory (range 15) 25755 | -6/Proximity Caves | Entered Factory 25755 | -6/Factory | Evolved 2 slots: Utility x2 25756 | -6/Factory | Identified exit to Lower Caves 25757 | -6/Factory | Loaded intel: 108 trap records 26551 | -6/Factory | Lost 3 parts (2n1u) 26956 | -6/Factory | Spotted B-75 Beast 27067 | -6/Factory | Build established: Hacker-Sprinter 27086 | -6/Factory | Discovered new exit (range 15) 27231 | -6/Factory | Repaired Hvy. Rocket Launcher 27307 | -6/Factory | Identified exit to Extension 27415 | -6/Factory | Build established: Scavenger-Sprinter 27505 | -6/Factory | Search patrols dispatched 27701 | -6/Factory | Discovered new exit (range 8) 27703 | -6/Factory | Fabricated Combat Drone Bay? 27855 | -6/Factory | Search patrols dispatched 27987 | -6/Factory | Fabricated Combat Drone Bay (x1) 28416 | -6/Factory | Build established: Hauler-Mutant 28757 | -6/Factory | System corruption reached 10% 28879 | -6/Factory | Entered Extension 29025 | -6/Extension | Rescued a captive Derelict 29026 | -6/Extension | Rescued a captive Derelict 29199 | -6/Extension | Rescued a captive Derelict 29670 | -6/Extension | Rescued a captive Derelict 30358 | -6/Extension | Allies destroyed B-75 Beast 30407 | -6/Extension | Allies destroyed B-75 Beast 30632 | -6/Extension | Rescued A7 30690 | -6/Extension | Rescued a captive Derelict 30692 | -6/Extension | Rescued a captive Derelict 31209 | -6/Extension | Build established: Commander-Mutant 31564 | -6/Extension | Disrupted transfer network 32153 | -6/Extension | Discovered new exit (range 15) 32157 | -6/Extension | Discovered new exit (range 15) 32199 | -6/Extension | Identified exit to Factory 32221 | -6/Extension | Identified exit to Cetus 32225 | -6/Extension | Entered Cetus 32225 | -6/Cetus | Accompanied by 12 allies (A7) 32230 | -6/Cetus | Acquired a Cetus Manufacturing Module code from A7 32267 | -6/Cetus | Spotted Cetus Guard 32274 | -6/Cetus | Spotted Cetus Guard 32274 | -6/Cetus | Spotted Cetus Guard 32277 | -6/Cetus | Spotted Cetus Guard 32291 | -6/Cetus | Allies destroyed Cetus Guard 32292 | -6/Cetus | Allies destroyed Cetus Guard 32296 | -6/Cetus | Allies destroyed Cetus Guard 32298 | -6/Cetus | Allies destroyed Cetus Guard 32478 | -6/Cetus | Started Cetus Manufacturing Module 32503 | -6/Cetus | Manufactured an Enhanced Grunt 32516 | -6/Cetus | Discovered new exit (range 16) 32528 | -6/Cetus | Manufactured an Enhanced Grunt 32553 | -6/Cetus | Manufactured an Enhanced Grunt 32578 | -6/Cetus | Manufactured an Enhanced Grunt 32585 | -6/Cetus | Build established: Hauler-Mutant 32603 | -6/Cetus | Manufactured an Enhanced Grunt 32637 | -6/Cetus | Spotted Cetus Guard 32637 | -6/Cetus | Spotted Cetus Guard 32643 | -6/Cetus | Spotted Cetus Guard 32647 | -6/Cetus | Spotted Cetus Guard 32654 | -6/Cetus | Allies destroyed Cetus Guard 32654 | -6/Cetus | Allies destroyed Cetus Guard 32657 | -6/Cetus | Allies destroyed Cetus Guard 32665 | -6/Cetus | Discovered exit to Factory (range 15) 32678 | -6/Cetus | Met Revision 17 32789 | -6/Cetus | Identified exit to Archives 32791 | -6/Cetus | Entered Archives 32791 | -6/Archives | Accompanied by 6 allies (A7) 32873 | -6/Archives | Discovered exit to Factory (range 15) 33007 | -6/Archives | Discovered new exit (range 16) 33177 | -6/Archives | Build established: Scavenger-Mutant 33186 | -6/Archives | Discovered new exit (range 14) 33667 | -6/Archives | Identified exit to Hub_04(d) 34189 | -6/Archives | Entered Hub_04(d) 34189 | -6/Hub_04(d) | Accompanied by 5 allies 34253 | -6/Hub_04(d) | Build established: Hauler-Mutant 34366 | -6/Hub_04(d) | Network Hub disabled 34375 | -6/Hub_04(d) | Garrison activated, responded to threat 34556 | -6/Hub_04(d) | Discovered exit to Factory (range 5) 34852 | -6/Hub_04(d) | Spotted B-75 Beast 34874 | -6/Hub_04(d) | Destroyed B-75 Beast 34932 | -6/Hub_04(d) | Disrupted transfer network 34950 | -6/Hub_04(d) | Network Hub disabled 35089 | -6/Hub_04(d) | Entered Factory 35089 | -5/Factory | Evolved 2 slots: Utility x2 35638 | -5/Factory | Discovered new exit (range 8) 35642 | -5/Factory | Identified exit to Upper Caves 35664 | -5/Factory | Found Prototype Launcher 35753 | -5/Factory | Repaired Exp. Sensor Array 35902 | -5/Factory | Identified Mni. Smartbomb Launcher 35965 | -5/Factory | Repaired Centrium Heavy Treads 36063 | -5/Factory | Build established: Wizard-Scout 36097 | -5/Factory | Discovered new exit (range 9) 36348 | -5/Factory | Repaired Centrium Heavy Treads? 36552 | -5/Factory | Repaired Adv. KE Penetrator 36575 | -5/Factory | Repaired Med. Reactive Plating 37216 | -5/Factory | Central database locked down 37483 | -5/Factory | Fabricated Exp. Hacking Suite (x1) 37524 | -5/Factory | Fabricated Exp. Hacking Suite (x1) 37530 | -5/Factory | Fabricated Exp. Hacking Suite? 37579 | -5/Factory | Fabricated Exp. Hacking Suite (x1) 37592 | -5/Factory | Fabricated Humpback (x1) 37775 | -5/Factory | Repaired Adv. KE Penetrator 38280 | -5/Factory | Build established: Hacker-Mutant 38307 | -5/Factory | Sucked down chute 38307 | -5/Factory | Entered Waste 38322 | -5/Waste | EMP discharged 38322 | -5/Waste | System corruption reached 10% 38325 | -5/Waste | Destroyed C-40 Crusher 38330 | -5/Waste | Spotted C-40 Crusher 38338 | -5/Waste | Spotted C-40 Crusher 38347 | -5/Waste | Destroyed C-40 Crusher 38359 | -5/Waste | Crushed by Compactor (1 part destroyed, 1 dropped) 38362 | -5/Waste | Crushed by Compactor (1 part destroyed, 1 dropped) 38365 | -5/Waste | Crushed by Compactor (1 part destroyed, 1 dropped) 38365 | -5/Waste | Destroyed C-40 Crusher 38396 | -5/Waste | Lost 3 parts (2u1w) 38420 | -5/Waste | Spotted C-40 Crusher 38422 | -5/Waste | EMP discharged 38428 | -5/Waste | Crushed by Compactor (1 part destroyed) 38431 | -5/Waste | Crushed by Compactor (1 part destroyed) 38434 | -5/Waste | Destroyed C-40 Crusher 38475 | -5/Waste | Spotted C-40 Crusher 38487 | -5/Waste | Crushed by Compactor (1 part destroyed) 38489 | -5/Waste | Destroyed C-40 Crusher 38505 | -5/Waste | Spotted C-40 Crusher 38512 | -5/Waste | Destroyed C-40 Crusher 38522 | -5/Waste | EMP discharged 38622 | -5/Waste | EMP discharged 38649 | -5/Waste | Discovered new exit (range 11) 38661 | -5/Waste | Build established: Hauler-Mutant 38671 | -5/Waste | Identified exit to Factory 38673 | -5/Waste | Entered Factory 38973 | -5/Factory | First assault squad dispatched 39351 | -5/Factory | Fabricated Exp. Sensor Array (x1) 39375 | -5/Factory | Discovered new exit (range 11) 39388 | -5/Factory | Identified exit to Factory 39549 | -5/Factory | System corruption reached 30% 39748 | -5/Factory | Build established: Wizard-Sprinter 39874 | -5/Factory | Discovered exit to Factory (range 6) 39955 | -5/Factory | Spotted B-75 Beast 39970 | -5/Factory | Central database locked down 40405 | -5/Factory | Fabricated Exp. Utility Shielding (x1) 40452 | -5/Factory | Fabricated Exp. Hacking Suite (x1) 40501 | -5/Factory | Fabricated Exp. Hacking Suite (x1) 40689 | -5/Factory | Repaired Centrium Heavy Treads 40798 | -5/Factory | Repaired Centrium Heavy Treads 40902 | -5/Factory | Repaired Corrupted Rnf. Quantum Reactor 41011 | -5/Factory | Repaired Centrium Medium Armor Plating 41358 | -5/Factory | Build established: Wizard-Mutant 41800 | -5/Factory | Entered Upper Caves 42285 | -5/Upper Caves | Core integrity fell below 50% 42333 | -5/Upper Caves | Learned Factory trap positions 42461 | -5/Upper Caves | Discovered new exit (range 10) 42485 | -5/Upper Caves | Identified exit to Upper Caves 42487 | -5/Upper Caves | Entered another Upper Caves area 42690 | -5/Upper Caves | Learned 8 Factory zone layouts 42871 | -5/Upper Caves | Discovered new exit (range 15) 42902 | -5/Upper Caves | Identified exit to Zhirov 42905 | -5/Upper Caves | Entered Zhirov 42905 | -5/Zhirov | Discovered new exit (range 4) 42910 | -5/Zhirov | Identified exit to Proximity Caves 42952 | -5/Zhirov | Met Zhirov 43006 | -5/Zhirov | Learned location of Testing (-2) 43006 | -5/Zhirov | Learned location of Command (-1) 43021 | -5/Zhirov | Zhirov requested help retrieving the SGEMP Prototype 43062 | -5/Zhirov | Found Alien Artifact 43062 | -5/Zhirov | Identified Integrated Dissipator 43062 | -5/Zhirov | Installed Integrated Dissipator, increased core heat dissipation (+20) 43184 | -5/Zhirov | Found Alien Artifact 43277 | -5/Zhirov | Entered Proximity Caves 43744 | -4/Proximity Caves | Spotted B-86 Titan 43901 | -4/Proximity Caves | Lost 4 parts (3u1w) 44027 | -4/Proximity Caves | Learned Research stockpile data 44143 | -4/Proximity Caves | Build established: Hacker-Mutant 44398 | -4/Proximity Caves | Discovered exit to Factory (range 8) 44412 | -4/Proximity Caves | Entered Factory 44412 | -4/Factory | Evolved 2 slots: Power x1, Utility x1 44414 | -4/Factory | Loaded intel: 107 trap records 44679 | -4/Factory | Discovered new exit (range 10) 44693 | -4/Factory | Identified exit to Upper Caves 45217 | -4/Factory | Found Mni. Smartbomb Launcher 45672 | -4/Factory | Discovered new exit (range 8) 45672 | -4/Factory | Discovered new exit (range 19) 45954 | -4/Factory | Repaired Exp. Utility Shielding? 46051 | -4/Factory | Repaired Exp. Utility Shielding? 46173 | -4/Factory | Repaired Centrium Heavy Treads? 46291 | -4/Factory | Repaired Adv. KE Penetrator 46314 | -4/Factory | Build established: Wizard-Sprinter 46372 | -4/Factory | Repaired Exp. Utility Shielding 47386 | -4/Factory | Repaired Centrium Heavy Treads? 47511 | -4/Factory | Repaired Centrium Medium Armor Plating 47562 | -4/Factory | Repaired Adv. KE Penetrator? 47660 | -4/Factory | Repaired Centrium Heavy Treads 47735 | -4/Factory | Discovered new exit (range 13) 47746 | -4/Factory | Identified exit to Research 48013 | -4/Factory | Fabricated Exp. Hacking Suite? 48185 | -4/Factory | Identified exit to Armory 48347 | -4/Factory | Central database locked down 48400 | -4/Factory | Discovered exit to Research (range 13) 48475 | -4/Factory | Repaired Adv. Force Field 49162 | -4/Factory | Build established: Wizard-Mutant 49600 | -4/Factory | Fabricated Exp. Terrain Scan Processor? 49667 | -4/Factory | Fabricated Exp. Terrain Scanner? 49741 | -4/Factory | Fabricated Exp. System Shield (x1) 49784 | -4/Factory | Garrison activated, responded to threat 49888 | -4/Factory | Entered Upper Caves 50426 | -4/Upper Caves | Discovered new exit (range 5) 50435 | -4/Upper Caves | Identified exit to Upper Caves 50726 | -4/Upper Caves | Entered another Upper Caves area 50824 | -4/Upper Caves | Discovered exit to Research (range 13) 50847 | -4/Upper Caves | Encountered a Warlord checkpoint 50882 | -4/Upper Caves | Learned location of 1 exit from Research 51930 | -4/Upper Caves | Discovered new exit (range 12) 51958 | -4/Upper Caves | Identified exit to Warlord 52112 | -4/Upper Caves | Entered Warlord 52185 | -4/Warlord | System corruption cleaned by Quarantine Array 52820 | -4/Warlord | Met Warlord 52842 | -4/Warlord | Opened Warlord's prototype stash 52845 | -4/Warlord | Warlord's base attacked by MAIN.C 52862 | -4/Warlord | Found Prototype Reactor 52862 | -4/Warlord | Identified Vortex Chain Reactor 52882 | -4/Warlord | Found System Purifier 52888 | -4/Warlord | Found Prototype Hackware 52896 | -4/Warlord | Identified System Mapper 52957 | -4/Warlord | Found Prototype Special Weapon 52957 | -4/Warlord | Identified RU-N14's Throwing Claymores v3 52967 | -4/Warlord | Found RU-N14's Throwing Claymores v3 53047 | -4/Warlord | Found Prototype Energy Cannon 53047 | -4/Warlord | Identified Vortex Driver 53061 | -4/Warlord | Found Prototype Energy Gun 53061 | -4/Warlord | Identified Vortex Shotgun 53071 | -4/Warlord | Found Vortex Driver 53086 | -4/Warlord | Found Vortex Shotgun 53195 | -4/Warlord | Warlord forces counterattacked 53216 | -4/Warlord | Spotted Executioner 53253 | -4/Warlord | Spotted Striker 53290 | -4/Warlord | Spotted Executioner 53302 | -4/Warlord | Spotted Striker 53334 | -4/Warlord | Discovered new exit (range 12) 53346 | -4/Warlord | Spotted Executioner 53375 | -4/Warlord | Found Prototype Processor 53375 | -4/Warlord | Identified Exp. Core Analyzer 53407 | -4/Warlord | Identified exit to Proximity Caves 53409 | -4/Warlord | Entered Proximity Caves 53569 | -3/Proximity Caves | Received a Behemoth hack from an annoying Tinkerer 54604 | -3/Proximity Caves | Attracted the attention of an 0b10 outpost 55268 | -3/Proximity Caves | Discovered exit to Research (range 16) 55307 | -3/Proximity Caves | Entered Research 55307 | -3/Research | Evolved 2 slots: Utility x2 55308 | -3/Research | Identified exit to Quarantine 55385 | -3/Research | Identified Transdimensional Reconstructor 55507 | -3/Research | Revision forces began assault on 0b10 55511 | -3/Research | Met up with Revision 17++ 55612 | -3/Research | Build established: Wizard-Skirmisher 56007 | -3/Research | Research terminal network offline 56104 | -3/Research | Spotted B-86 Titan 56210 | -3/Research | Discovered new exit (range 28) 56297 | -3/Research | Repaired Exp. Utility Shielding 56335 | -3/Research | Repaired Rnf. Quantum Reactor 56360 | -3/Research | Spotted Striker 56494 | -3/Research | Spotted Executioner 56500 | -3/Research | Spotted B-90 Cyclops 56516 | -3/Research | Entered Quarantine 56552 | -3/Quarantine | Found Alien Artifact 56552 | -3/Quarantine | Identified Core Reset Matrix 56552 | -3/Quarantine | Used Core Reset Matrix 56556 | -3/Quarantine | Detected hypermatrix surge 56556 | -3/Quarantine | Sensed 12 artifacts in vicinity 56590 | -3/Quarantine | Found Unknown Device 56590 | -3/Quarantine | Identified Antimissile System 56647 | -3/Quarantine | Repaired Exp. Utility Shielding 56685 | -3/Quarantine | Repaired Centrium Medium Armor Plating? 56705 | -3/Quarantine | Cryocooling Duct disabled 56717 | -3/Quarantine | Cryocooling Duct disabled 56720 | -3/Quarantine | Ambient heat levels rising (+20) 56720 | -3/Quarantine | Non-combat units ordered to evacuate 56732 | -3/Quarantine | Ambient heat levels rising (+20) 56732 | -3/Quarantine | Combat units ordered to evacuate 56788 | -3/Quarantine | Repaired Adv. KE Penetrator 56832 | -3/Quarantine | Quarantine Guard activated 56844 | -3/Quarantine | Repaired Centrium Heavy Treads 57067 | -3/Quarantine | Destroyed Quarantine Guard 57149 | -3/Quarantine | Spotted Quarantine Guard 57164 | -3/Quarantine | Destroyed Quarantine Guard 57228 | -3/Quarantine | Destroyed Quarantine Guard 57228 | -3/Quarantine | Destroyed Quarantine Guard 57619 | -3/Quarantine | Found Prototype Processor 57701 | -3/Quarantine | Identified Exp. Signal Interpreter 57912 | -3/Quarantine | Spotted Quarantine Guard 57980 | -3/Quarantine | Spotted Quarantine Guard 57980 | -3/Quarantine | Destroyed Quarantine Guard 58066 | -3/Quarantine | Found Unknown Launcher 58068 | -3/Quarantine | Found Unknown Launcher 58082 | -3/Quarantine | Identified Gamma Bomb Array (x2) 58109 | -3/Quarantine | Destroyed Quarantine Guard 58197 | -3/Quarantine | Destroyed Quarantine Guard 59004 | -3/Quarantine | Found Unknown Launcher 59004 | -3/Quarantine | Identified Fusion Bomb Launcher 59205 | -3/Quarantine | Found Prototype Processor 59278 | -3/Quarantine | Identified Exp. Target Analyzer 59721 | -3/Quarantine | Discovered new exit (range 26) 59773 | -3/Quarantine | Spotted Quarantine Guard 59776 | -3/Quarantine | Destroyed Quarantine Guard 59892 | -3/Quarantine | Destroyed Quarantine Guard 61736 | -3/Quarantine | Build established: Wizard-Mutant 61798 | -3/Quarantine | Found Dimensional Node Initializer 61806 | -3/Quarantine | Found Transdimensional Reconstructor 62093 | -3/Quarantine | Build established: Wizard-Skirmisher 62166 | -3/Quarantine | Found Core Cannon 62820 | -3/Quarantine | Spotted Fortress 62986 | -3/Quarantine | Discovered new exit (range 5) 62986 | -3/Quarantine | Spotted Quarantine Guard 62993 | -3/Quarantine | Identified exit to Section 7 62995 | -3/Quarantine | Entered Section 7 62996 | -3/Section 7 | Sensed 16 artifacts in vicinity 63141 | -3/Section 7 | Repaired Centrium Heavy Treads 63169 | -3/Section 7 | Repaired Exp. Utility Shielding 63206 | -3/Section 7 | Repaired Centrium Heavy Treads 63226 | -3/Section 7 | Repaired Lrn. Proton Cannon 63379 | -3/Section 7 | Discovered new exit (range 27) 63424 | -3/Section 7 | Central database locked down 63566 | -3/Section 7 | Identified exit to Research 63575 | -3/Section 7 | Initialized slip node 64032 | -3/Section 7 | Build established: Wizard-Mutant 64138 | -3/Section 7 | Found Spacefold Activator 64151 | -3/Section 7 | Warped through subspace to slip node 64398 | -3/Section 7 | Found Integrity Redistributor 64439 | -3/Section 7 | Spotted S7 Guard 64677 | -3/Section 7 | Found Sigix Shearcannon 64709 | -3/Section 7 | Destroyed S7 Guard 64964 | -3/Section 7 | Entered Research 64964 | -2/Research | Warlord forces began assault on 0b10 64964 | -2/Research | Evolved 2 slots: Propulsion x2 65074 | -2/Research | Research machine network offline 65096 | -2/Research | Repaired Centrium Heavy Treads 65165 | -2/Research | Discovered new exit (range 19) 65212 | -2/Research | Identified exit to Access 65307 | -2/Research | Borebot progress halted 65337 | -2/Research | Met up with Warlord 65391 | -2/Research | Discovered exit to Access (range 28) 65589 | -2/Research | Build established: Wizard-Skirmisher 65597 | -2/Research | Borebot progress halted 65667 | -2/Research | Spotted Striker 65673 | -2/Research | Destroyed Striker 65674 | -2/Research | Spotted Executioner 65679 | -2/Research | Destroyed Executioner 65760 | -2/Research | Borebot progress halted 65762 | -2/Research | Spotted Striker 65814 | -2/Research | Discovered new exit (range 29) 65849 | -2/Research | Found Prototype Launcher 65908 | -2/Research | Identified exit to Testing 65911 | -2/Research | Entered Testing 65949 | -2/Testing | Found Prototype Energy Gun 65949 | -2/Testing | Identified Warp Gun 65998 | -2/Testing | Found Prototype Energy Cannon 65998 | -2/Testing | Identified Null Cannon 66067 | -2/Testing | Spotted PX-414IEMV39W 66087 | -2/Testing | Discovered exit to Access (range 30) 66433 | -2/Testing | Found Prototype Energy Cannon 66433 | -2/Testing | Identified Disintegrator 66471 | -2/Testing | Found Prototype Launcher 66472 | -2/Testing | Identified Z-bomb Delivery System 66529 | -2/Testing | Found Prototype Energy Cannon 66529 | -2/Testing | Identified Hpw. Disruptor Cannon 66553 | -2/Testing | Repaired System Purifier? 66629 | -2/Testing | Repaired Centrium Heavy Treads? 66683 | -2/Testing | Repaired Exp. Utility Shielding? 66755 | -2/Testing | Repaired Centrium Heavy Treads 66812 | -2/Testing | Repaired Centrium Medium Armor Plating 66855 | -2/Testing | Repaired Exp. Utility Shielding 66897 | -2/Testing | Repaired Adv. Force Field 67033 | -2/Testing | Repaired System Purifier 67349 | -2/Testing | Spotted PX-Z7KHZ9OX8I 67374 | -2/Testing | Destroyed PX-Z7KHZ9OX8I 67588 | -2/Testing | Build established: Wizard-Mutant 67620 | -2/Testing | Spotted Striker 67829 | -2/Testing | Repaired Centrium Heavy Treads 67885 | -2/Testing | Repaired Centrium Heavy Treads 67944 | -2/Testing | Repaired Centrium Medium Armor Plating 68008 | -2/Testing | Repaired Centrium Heavy Treads 68128 | -2/Testing | Entered Access 68128 | -1/Access | Evolved 2 slots: Propulsion x2 68140 | -1/Access | Identified exit to Command 68214 | -1/Access | Fabricated Adv. Particle Accelerator (x1) 68245 | -1/Access | Fabricated Quantum Capacitor (x2) 68301 | -1/Access | Fabricated Cld. Q-thruster (x1) 68357 | -1/Access | Fabricated Exp. Reaction Control System? 68986 | -1/Access | Entered Command 69375 | -1/Command | Repaired Centrium Heavy Treads 69440 | -1/Command | Spotted B-99 Colossus 69509 | -1/Command | Destroyed B-99 Colossus 69538 | -1/Command | Found Prototype Ballistic Gun 69736 | -1/Command | First assault squad dispatched 69750 | -1/Command | Repaired Centrium Heavy Treads 69843 | -1/Command | Phase Generator disabled 70011 | -1/Command | Destroyed 8 combat bots 70012 | -1/Command | Disengaged cave seal 70012 | -1/Command | Derelicts emerged from the dark tunnel 70013 | -1/Command | Welcomed Warlord to Command 70221 | -1/Command | Disengaged cave seal 70221 | -1/Command | Derelicts emerged from the dark tunnel 70424 | -1/Command | Spotted M Guard 70424 | -1/Command | Spotted M Guard 70425 | -1/Command | Spotted Combat Programmer 70425 | -1/Command | Spotted Combat Programmer 70429 | -1/Command | Combat Programmer assimilated allied 5W-OW4(i) 70430 | -1/Command | Warlord commented on Warlord statues 70434 | -1/Command | System corruption reached 10% 70442 | -1/Command | Destroyed M Guard 70449 | -1/Command | Combat Programmer assimilated allied Z4-DD4(l) 70451 | -1/Command | Destroyed Combat Programmer 70453 | -1/Command | Combat Programmer assimilated allied C4-AEU(l) 70469 | -1/Command | All MAIN.C guards destroyed 70490 | -1/Command | Lost 4 parts (1p3u) 70491 | -1/Command | Found Prototype Reactor 70491 | -1/Command | Identified Zero-point Reactor 70554 | -1/Command | Met MAIN.C 70563 | -1/Command | Warlord shut down involuntarily 70576 | -1/Command | 0b10 Conduit disabled 70588 | -1/Command | Used Integrity Redistributor, redistributed integrity from core (-432) 70589 | -1/Command | Core integrity fell below 50% 70613 | -1/Command | Destroyed MAIN.C Shell 70615 | -1/Command | MAIN.C activated Command garrisons 70626 | -1/Command | Emitted hypermatrix ping 70631 | -1/Command | Assembled emerged from beneath the floor 70659 | -1/Command | Destroyed MAIN.C 70667 | -1/Command | Discovered new exit (range 39) 70667 | -1/Command | Discovered new exit (range 110) 70667 | -1/Command | Extracted map data and part IDs from MAIN.C's data core 70781 | -1/Command | Core integrity fell below 20% 70791 | -1/Command | Spotted Striker 70800 | -1/Command | Destroyed Striker 70826 | -1/Command | Released all parts (10) 70831 | -1/Command | Destroyed by P-80 Master with Gamma Rifle Last Messages --------------- 70826_ Released Quantum Capacitor. 70826_ Released Adv. Energy Well. 70826_ Released Exp. Hacking Suite. 70826_ Released Huge Storage Unit. 70826_ Z-bomb Delivery System crushed and broken. 70826_ Enh. Nova Cannon crushed and broken. 70826_ Vortex Driver crushed and broken. 70826_ Transdimensional Reconstructor crushed and broken. 70826_ Com. Mass Driver crushed and broken. 70826_ Adv. Force Field crushed and broken. 70826_ Cld. Q-thruster crushed and broken. 70826_ Null Cannon crushed and broken. 70826_ Released System Mapper. 70826_ Released Exp. Core Analyzer. 70826_ Released Exp. Cooling System. 70826_ Exp. Cooling System crushed and broken. 70826_ Released Exp. Coolant Injector. 70826_ Exp. Coolant Injector crushed and broken. 70826_ Released Sigix Shearcannon. 70826_ Sigix Shearcannon crushed and broken. Map ----- +----------------------------------------------------+ | ?????????????????????????????????#?#?#???????????? | | ?????????????????????????????????#?#?#???????????? | | ?????????????????????????????????#?#?#???????????? | | ??###########################????#?#?#???????????? | | ??#?????????????????????????#????#?#?#???????????? | | #?#?#######################?#????#?#?#???????????? | | #?#?#""""""" """" #####################??? | | #?#?#"" "" #?#???????????????#?#??? | | #?#?#""""" "" #######################? | | #?#?#""""""""""" + #? | | #?#?#" " """ " " " #? | | #?#?#"" """""" % " " " " " #? | | #?#?#"" """""" !!] % ################### #? | | #?#?# " """"" !%[ %% #?#???????????????# #? | | #?#?# " " p[*% % ################### ## | | #?#?# " |[%!%!!% "#?#????#?#?#??????# # | | ??#?#"""""""" *=i%!%p"""""#?#????#?#?#??????#"""## | | ??#?#"" =[==[x==""""#?#????#?#?#??????# | | ??#?# !%!!!=! """#?#????#?#?#??????# | | ??#?# *%[ %| " #?#????#?#?#??????# | | ##### %!= !#?#????#?#?#??????# | | ! =%! !#?#????#?#?#??????# | | [ !!#?#????#?#?#??????# # | | ]*!!#?#????#?#?#??????###### | | ##### !!!%%#?#????#?#?#???????????? | | ??#?# " " !%=!@#?#????#?#?#???????????? | | ??#?# " " !!%!%!#?#????#?#?#???????????? | | ??#?#######################?#????#?#?#???????????? | | ??#?????????????????????????#????#?#?#???????????? | | ??###########################????#?#?#???????????? | | ?????????????????????????????????#?#?#???????????? | | ?????????????????????????????????#?#?#???????????? | | ?????????????????????????????????#?#?#???????????? | | #????????????????????????????????#?#?#???????????? | | #????????????????????????????????#?#?#???????????? | | #????????????????????????????????#?#?#???????????? | | #????????????????????????????????#?#?#???????????? | | #????????????????????????????????#?#?#???????????? | | #????????????????????????????????#?#?#???????????? | | #????????????????????????????????#?#?#???????????? | | #????????????????????????????????#?#?#??????###### | | #????????????????????????????????#?#?#??????# | | #????????????????????????????????#?#?#??????# #### | | #????????????????????????????????#?#?#??????# #??# | | ?????????????????????????????????#?#?#??????# #??# | | ?????????????????????????????????#?#?#????### #### | | ?????????????????????????????????#?#?#????# # | | ?????????????????????????????????#?#?#????# # | | ?????????????????????????????????#?#?#????# # | | ?????????????????????????????????#?#?#????# # | +----------------------------------------------------+ Best States ------------- Heat Dissipation 110 Coolant Potential 120 Energy Generation 55 Energy Capacity 1240 Matter Stores 300 Matter Capacity 300 Sight Range 18 Robot Scan Range 20 Terrain Scan Range 30 Terrain Scan Density 1010 Cloak Strength 3 Armor Coverage 2100 Resistance: KI 30 Resistance: TH 20 Utility Shielding 90 Weapon Cycling 25 Evasion (%) 64 Targeting Accuracy 5 Core Analysis 8 Recoil Reduction 8 Matter Filtering 50 Energy Filtering 30 Particle Charging 50 Offensive Hacking 84 Defensive Hacking 22 Authchip Count 6 Trap Extractor Capacity 6 Item Schematics ----------------- Centrium Heavy Treads | -3/Quarantine | Hacked Enh. Nova Cannon | -3/Quarantine | Hacked Exp. Signal Interpreter | -3/Quarantine | Scanalyzed Adv. Particle Accelerator | -3/Quarantine | Hacked Exp. Target Analyzer | -3/Quarantine | Scanalyzed Exp. Utility Shielding | -3/Quarantine | Hacked Hyp. Railgun | -3/Quarantine | Hacked Hvy. Hardcell Cannon | -3/Quarantine | Archive Centrium Greatsword | -3/Quarantine | Archive Enh. Coil Gun | -3/Quarantine | Archive Hdn. Centrium Wheel | -3/Quarantine | Archive Exp. Cooling System | -3/Quarantine | Scanalyzed Exp. Coolant Injector | -3/Quarantine | Scanalyzed Imp. Cloaking Device | -3/Quarantine | Scanalyzed Centrium Medium Armor Plating | -3/Quarantine | Scanalyzed Vortex Chain Reactor | -3/Quarantine | Scanalyzed System Purifier | -3/Quarantine | Scanalyzed Mni. Smartbomb Launcher | -3/Quarantine | Scanalyzed Imp. Heavy Siege Treads | -3/Quarantine | Hacked Cld. Q-thruster | -3/Section 7 | Hacked Quantum Capacitor | -2/Testing | Hacked Exp. Biometal Heavy Treads | -2/Testing | Hacked Exp. Armor Integrity Analyzer | -2/Testing | Hacked Exp. Reaction Control System | -2/Testing | Hacked Exp. Force Field | -2/Testing | Hacked Exp. Phase Shifter | -2/Testing | Hacked Tiamat Missile Launcher | -2/Testing | Archive Exp. EM Disruption Field | -2/Testing | Archive Cld. Antigrav System | -2/Testing | Archive Robot Schematics ------------------ None Fabricated ------------ Combat Drone Bay | x1 | -6/Factory Combat Drone Bay | x1 | -6/Factory | Authchip Exp. Hacking Suite | x1 | -5/Factory | Authchip Exp. Hacking Suite | x1 | -5/Factory | Authchip Exp. Hacking Suite | x1 | -5/Factory | Authchip Exp. Hacking Suite | x1 | -5/Factory | Authchip Humpback | x1 | -5/Factory Exp. Sensor Array | x1 | -5/Factory | Authchip Exp. Utility Shielding | x1 | -5/Factory | Authchip Exp. Hacking Suite | x1 | -5/Factory | Authchip Exp. Hacking Suite | x1 | -5/Factory | Authchip Exp. Hacking Suite | x1 | -4/Factory | Authchip Exp. Terrain Scan Processor | x1 | -4/Factory | Authchip Exp. Terrain Scanner | x1 | -4/Factory | Authchip Exp. System Shield | x1 | -4/Factory | Authchip Adv. Particle Accelerator | x1 | -1/Access | Authchip Quantum Capacitor | x2 | -1/Access | Authchip Cld. Q-thruster | x1 | -1/Access | Authchip Exp. Reaction Control System | x1 | -1/Access Alien Tech Used ----------------- Integrated Dissipator Core Reset Matrix Dimensional Node Initializer Transdimensional Reconstructor Sigix Shearcannon Integrity Redistributor Achievements -------------- None Challenges ------------ None Game ------ Seed CoilNetworkMultirail Manual? 0 Play Time 08:33:22 Cumulative 560.4 hours Start 2022.07.22 @ 19:21:06 End 2022.07.25 @ 00:51:35 Sessions 33 Manual Loads 0 Difficulty Rogue Special Mode None Game No. 495 Rogue 495 Adventurer 0 Explorer 0 Win Type - Total 25 Types 13/2/6/2/0/0/1/1/0 Lore% 94 Gallery% 94 Achievement% 79 Wizard Run 0 Options --------- ASCII 0 Keyboard 0 Movement Arrows Keybinds 0 Fullscreen 1 Font 18/Smallcaps Map View 76x50 Tactical HUD 1 Map Filters NONE Filters NONE Steam 1 RUN: d00acd7c-1f01-4e2d-a1a2-1df28a4b3c8a